Department Family,Entity,Date,Expense Type,Expense Area,Supplier,SME,Transaction Number,Amount,Description,Expenditure Type
Land Registry,Land Registry,12/02/2015,Computer Equipment Maintenance,IS Service Delivery,ANS Group Plc,Large,1048672,"24,000.00",Computer Equipment Maintenance,Administration
Land Registry,Land Registry,12/02/2015,Stationery National Contracts,Birkenhead Office,Banner Business Services Ltd,Large,1048674,690.07,Stationery,Administration
Land Registry,Land Registry,12/02/2015,Stationery National Contracts,Birkenhead Office,Banner Business Services Ltd,Large,1048674,136.73,Stationery,Administration
Land Registry,Land Registry,12/02/2015,Stationery National Contracts,Coventry Office,Banner Business Services Ltd,Large,1048674,"4,975.39",Stationery,Administration
Land Registry,Land Registry,12/02/2015,Stationery National Contracts,Coventry Office,Banner Business Services Ltd,Large,1048674,995.08,Stationery,Administration
Land Registry,Land Registry,12/02/2015,Stationery National Contracts,Croydon Office,Banner Business Services Ltd,Large,1048674,492.61,Stationery,Administration
Land Registry,Land Registry,12/02/2015,Stationery National Contracts,Croydon Office,Banner Business Services Ltd,Large,1048674,93.65,Stationery,Administration
Land Registry,Land Registry,12/02/2015,Stationery National Contracts,Durham Office,Banner Business Services Ltd,Large,1048674,"3,093.62",Stationery,Administration
Land Registry,Land Registry,12/02/2015,Stationery National Contracts,Durham Office,Banner Business Services Ltd,Large,1048674,618.12,Stationery,Administration
Land Registry,Land Registry,12/02/2015,Stationery National Contracts,Gloucester Office,Banner Business Services Ltd,Large,1048674,"2,262.05",Stationery,Administration
Land Registry,Land Registry,12/02/2015,Stationery National Contracts,Gloucester Office,Banner Business Services Ltd,Large,1048674,452.42,Stationery,Administration
Land Registry,Land Registry,12/02/2015,Stationery National Contracts,Hull Office,Banner Business Services Ltd,Large,1048674,817.18,Stationery,Administration
Land Registry,Land Registry,12/02/2015,Stationery National Contracts,Hull Office,Banner Business Services Ltd,Large,1048674,163.44,Stationery,Administration
Land Registry,Land Registry,12/02/2015,Stationery National Contracts,Fylde Office,Banner Business Services Ltd,Large,1048674,"1,450.64",Stationery,Administration
Land Registry,Land Registry,12/02/2015,Stationery National Contracts,Fylde Office,Banner Business Services Ltd,Large,1048674,287.72,Stationery,Administration
Land Registry,Land Registry,12/02/2015,Stationery National Contracts,Leicester Office,Banner Business Services Ltd,Large,1048674,"1,282.55",Stationery,Administration
Land Registry,Land Registry,12/02/2015,Stationery National Contracts,Leicester Office,Banner Business Services Ltd,Large,1048674,255.90,Stationery,Administration
Land Registry,Land Registry,12/02/2015,Stationery National Contracts,Nottingham Office,Banner Business Services Ltd,Large,1048674,"2,224.14",Stationery,Administration
Land Registry,Land Registry,12/02/2015,Stationery National Contracts,Nottingham Office,Banner Business Services Ltd,Large,1048674,444.84,Stationery,Administration
Land Registry,Land Registry,12/02/2015,Stationery National Contracts,Peterborough Office,Banner Business Services Ltd,Large,1048674,885.71,Stationery,Administration
Land Registry,Land Registry,12/02/2015,Stationery National Contracts,Peterborough Office,Banner Business Services Ltd,Large,1048674,177.15,Stationery,Administration
Land Registry,Land Registry,12/02/2015,Stationery National Contracts,Plymouth Office,Banner Business Services Ltd,Large,1048674,"2,246.42",Stationery,Administration
Land Registry,Land Registry,12/02/2015,Stationery National Contracts,Plymouth Office,Banner Business Services Ltd,Large,1048674,449.26,Stationery,Administration
Land Registry,Land Registry,12/02/2015,Stationery National Contracts,Telford Office,Banner Business Services Ltd,Large,1048674,880.30,Stationery,Administration
Land Registry,Land Registry,12/02/2015,Stationery National Contracts,Telford Office,Banner Business Services Ltd,Large,1048674,175.17,Stationery,Administration
Land Registry,Land Registry,12/02/2015,Stationery National Contracts,Wales Office,Banner Business Services Ltd,Large,1048674,"3,324.69",Stationery,Administration
Land Registry,Land Registry,12/02/2015,Stationery National Contracts,Wales Office,Banner Business Services Ltd,Large,1048674,664.29,Stationery,Administration
Land Registry,Land Registry,12/02/2015,Stationery National Contracts,Weymouth Office,Banner Business Services Ltd,Large,1048674,"1,019.09",Stationery,Administration
Land Registry,Land Registry,12/02/2015,Stationery National Contracts,Weymouth Office,Banner Business Services Ltd,Large,1048674,203.82,Stationery,Administration
Land Registry,Land Registry,12/02/2015,Stationery National Contracts,Land Charges,Banner Business Services Ltd,Large,1048674,310.77,Stationery,Administration
Land Registry,Land Registry,12/02/2015,Stationery National Contracts,Land Charges,Banner Business Services Ltd,Large,1048674,62.15,Stationery,Administration
Land Registry,Land Registry,12/02/2015,Stationery National Contracts,Chief Executives Office,Banner Business Services Ltd,Large,1048674,43.01,Stationery,Administration
Land Registry,Land Registry,12/02/2015,Stationery National Contracts,Chief Executives Office,Banner Business Services Ltd,Large,1048674,8.61,Stationery,Administration
Land Registry,Land Registry,12/02/2015,Stationery National Contracts,HR,Banner Business Services Ltd,Large,1048674,230.24,Stationery,Administration
Land Registry,Land Registry,12/02/2015,Stationery National Contracts,HR,Banner Business Services Ltd,Large,1048674,46.05,Stationery,Administration
Land Registry,Land Registry,12/02/2015,Stationery National Contracts,Learning and Development,Banner Business Services Ltd,Large,1048674,48.64,Stationery,Administration
Land Registry,Land Registry,12/02/2015,Stationery National Contracts,Learning and Development,Banner Business Services Ltd,Large,1048674,9.72,Stationery,Administration
Land Registry,Land Registry,12/02/2015,Stationery National Contracts,Finance Group,Banner Business Services Ltd,Large,1048674,242.83,Stationery,Administration
Land Registry,Land Registry,12/02/2015,Stationery National Contracts,Finance Group,Banner Business Services Ltd,Large,1048674,48.57,Stationery,Administration
Land Registry,Land Registry,12/02/2015,Stationery National Contracts,Central RFS,Banner Business Services Ltd,Large,1048674,22.78,Stationery,Administration
Land Registry,Land Registry,12/02/2015,Stationery National Contracts,Central RFS,Banner Business Services Ltd,Large,1048674,4.55,Stationery,Administration
Land Registry,Land Registry,12/02/2015,Stationery National Contracts,Projects and Programme Centre,Banner Business Services Ltd,Large,1048674,201.90,Stationery,Administration
Land Registry,Land Registry,12/02/2015,Stationery National Contracts,Projects and Programme Centre,Banner Business Services Ltd,Large,1048674,40.38,Stationery,Administration
Land Registry,Land Registry,12/02/2015,Stationery National Contracts,Internal Solutions Group,Banner Business Services Ltd,Large,1048674,825.12,Stationery,Administration
Land Registry,Land Registry,12/02/2015,Stationery National Contracts,Internal Solutions Group,Banner Business Services Ltd,Large,1048674,165.01,Stationery,Administration
Land Registry,Land Registry,12/02/2015,Stationery National Contracts,Governance & Policy,Banner Business Services Ltd,Large,1048674,21.18,Stationery,Administration
Land Registry,Land Registry,12/02/2015,Stationery National Contracts,Governance & Policy,Banner Business Services Ltd,Large,1048674,4.24,Stationery,Administration
Land Registry,Land Registry,12/02/2015,Stationery National Contracts,IS Service Delivery,Banner Business Services Ltd,Large,1048674,"1,298.32",Stationery,Administration
Land Registry,Land Registry,12/02/2015,Stationery National Contracts,IS Service Delivery,Banner Business Services Ltd,Large,1048674,259.66,Stationery,Administration
Land Registry,Land Registry,12/02/2015,Stationery National Contracts,Central Facilities Management Team,Banner Business Services Ltd,Large,1048674,37.45,Stationery,Administration
Land Registry,Land Registry,12/02/2015,Stationery National Contracts,Central Facilities Management Team,Banner Business Services Ltd,Large,1048674,7.49,Stationery,Administration
Land Registry,Land Registry,12/02/2015,Stationery National Contracts,Marketing Services Team,Banner Business Services Ltd,Large,1048674,95.13,Stationery,Administration
Land Registry,Land Registry,12/02/2015,Stationery National Contracts,International Unit,Banner Business Services Ltd,Large,1048674,87.01,Stationery,Administration
Land Registry,Land Registry,12/02/2015,Waste Disposal,Central Facilities Management Team,Banner Business Services Ltd,Large,1048674,"13,663.20",Waste Disposal,Administration
Land Registry,Land Registry,02/02/2015,Data Network Lines,IS Service Delivery,British Telecommunications Plc,Large,1047347,"3,184.53",Data Network Lines,Administration
Land Registry,Land Registry,02/02/2015,Telephone Costs,IS Service Delivery,British Telecommunications Plc,Large,1047347,"154,115.36",Telephone Costs,Administration
Land Registry,Land Registry,02/02/2015,Telephone Costs,IS Service Delivery,British Telecommunications Plc,Large,1047347,"30,785.81",Telephone Costs,Administration
Land Registry,Land Registry,23/02/2015,Electricity,Birkenhead Office,Carillion Services Ltd,Large,1050252,"4,841.60",Electricity,Administration
Land Registry,Land Registry,23/02/2015,Electricity,Coventry Office,Carillion Services Ltd,Large,1050252,"7,344.31",Electricity,Administration
Land Registry,Land Registry,23/02/2015,Electricity,Croydon Office,Carillion Services Ltd,Large,1050252,"6,933.71",Electricity,Administration
Land Registry,Land Registry,23/02/2015,Electricity,Durham Office,Carillion Services Ltd,Large,1050252,"4,304.58",Electricity,Administration
Land Registry,Land Registry,23/02/2015,Electricity,Gloucester Office,Carillion Services Ltd,Large,1050252,"5,011.15",Electricity,Administration
Land Registry,Land Registry,23/02/2015,Electricity,Hull Office,Carillion Services Ltd,Large,1050252,"6,631.25",Electricity,Administration
Land Registry,Land Registry,23/02/2015,Electricity,Fylde Office,Carillion Services Ltd,Large,1050252,"4,754.71",Electricity,Administration
Land Registry,Land Registry,23/02/2015,Electricity,Leicester Office,Carillion Services Ltd,Large,1050252,"3,981.03",Electricity,Administration
Land Registry,Land Registry,23/02/2015,Electricity,Nottingham Office,Carillion Services Ltd,Large,1050252,"11,515.36",Electricity,Administration
Land Registry,Land Registry,23/02/2015,Electricity,Telford Office,Carillion Services Ltd,Large,1050252,"6,466.74",Electricity,Administration
Land Registry,Land Registry,23/02/2015,Electricity,Wales Office,Carillion Services Ltd,Large,1050252,"5,185.15",Electricity,Administration
Land Registry,Land Registry,23/02/2015,Electricity,Weymouth Office,Carillion Services Ltd,Large,1050252,"3,473.26",Electricity,Administration
Land Registry,Land Registry,23/02/2015,Electricity,Governance & Policy,Carillion Services Ltd,Large,1050252,"43,020.10",Electricity,Administration
Land Registry,Land Registry,23/02/2015,Electricity,Gloucester Computer Centre,Carillion Services Ltd,Large,1050252,"26,601.79",Electricity,Administration
Land Registry,Land Registry,20/02/2015,FF&F:Maintenance,Birkenhead Office,Carillion Services Ltd,Large,1049948,23.90,"Furniture, Fixtures & Fittings Maintenance",Administration
Land Registry,Land Registry,20/02/2015,FF&F:Maintenance,Coventry Office,Carillion Services Ltd,Large,1049948,23.90,"Furniture, Fixtures & Fittings Maintenance",Administration
Land Registry,Land Registry,20/02/2015,FF&F:Maintenance,Croydon Office,Carillion Services Ltd,Large,1049948,23.90,"Furniture, Fixtures & Fittings Maintenance",Administration
Land Registry,Land Registry,20/02/2015,FF&F:Maintenance,Durham Office,Carillion Services Ltd,Large,1049948,23.90,"Furniture, Fixtures & Fittings Maintenance",Administration
Land Registry,Land Registry,20/02/2015,FF&F:Maintenance,Gloucester Office,Carillion Services Ltd,Large,1049948,23.90,"Furniture, Fixtures & Fittings Maintenance",Administration
Land Registry,Land Registry,20/02/2015,FF&F:Maintenance,Hull Office,Carillion Services Ltd,Large,1049948,23.90,"Furniture, Fixtures & Fittings Maintenance",Administration
Land Registry,Land Registry,20/02/2015,FF&F:Maintenance,Fylde Office,Carillion Services Ltd,Large,1049948,23.90,"Furniture, Fixtures & Fittings Maintenance",Administration
Land Registry,Land Registry,20/02/2015,FF&F:Maintenance,Leicester Office,Carillion Services Ltd,Large,1049948,47.80,"Furniture, Fixtures & Fittings Maintenance",Administration
Land Registry,Land Registry,20/02/2015,FF&F:Maintenance,Nottingham Office,Carillion Services Ltd,Large,1049948,23.90,"Furniture, Fixtures & Fittings Maintenance",Administration
Land Registry,Land Registry,20/02/2015,FF&F:Maintenance,Peterborough Office,Carillion Services Ltd,Large,1049948,23.92,"Furniture, Fixtures & Fittings Maintenance",Administration
Land Registry,Land Registry,20/02/2015,FF&F:Maintenance,Telford Office,Carillion Services Ltd,Large,1049948,23.90,"Furniture, Fixtures & Fittings Maintenance",Administration
Land Registry,Land Registry,20/02/2015,FF&F:Maintenance,Wales Office,Carillion Services Ltd,Large,1049948,47.80,"Furniture, Fixtures & Fittings Maintenance",Administration
Land Registry,Land Registry,20/02/2015,FF&F:Maintenance,Weymouth Office,Carillion Services Ltd,Large,1049948,23.90,"Furniture, Fixtures & Fittings Maintenance",Administration
Land Registry,Land Registry,20/02/2015,FF&F:Maintenance,Governance & Policy,Carillion Services Ltd,Large,1049948,71.70,"Furniture, Fixtures & Fittings Maintenance",Administration
Land Registry,Land Registry,20/02/2015,FF&F:Maintenance,Gloucester Computer Centre,Carillion Services Ltd,Large,1049948,23.90,"Furniture, Fixtures & Fittings Maintenance",Administration
Land Registry,Land Registry,20/02/2015,FF&F:Purchases,Coventry Office,Carillion Services Ltd,Large,1049948,13.20,"Furniture, Fixtures & Fittings Purchases",Administration
Land Registry,Land Registry,20/02/2015,FF&F:Purchases,Croydon Office,Carillion Services Ltd,Large,1049948,714.45,"Furniture, Fixtures & Fittings Purchases",Administration
Land Registry,Land Registry,20/02/2015,FF&F:Purchases,Durham Office,Carillion Services Ltd,Large,1049948,"1,126.88","Furniture, Fixtures & Fittings Purchases",Administration
Land Registry,Land Registry,20/02/2015,FF&F:Purchases,Gloucester Office,Carillion Services Ltd,Large,1049948,793.95,"Furniture, Fixtures & Fittings Purchases",Administration
Land Registry,Land Registry,20/02/2015,FF&F:Purchases,Hull Office,Carillion Services Ltd,Large,1049948,"1,370.32","Furniture, Fixtures & Fittings Purchases",Administration
Land Registry,Land Registry,20/02/2015,FF&F:Purchases,Fylde Office,Carillion Services Ltd,Large,1049948,962.73,"Furniture, Fixtures & Fittings Purchases",Administration
Land Registry,Land Registry,20/02/2015,FF&F:Purchases,Leicester Office,Carillion Services Ltd,Large,1049948,20.72,"Furniture, Fixtures & Fittings Purchases",Administration
Land Registry,Land Registry,20/02/2015,FF&F:Purchases,Nottingham Office,Carillion Services Ltd,Large,1049948,"3,360.58","Furniture, Fixtures & Fittings Purchases",Administration
Land Registry,Land Registry,20/02/2015,FF&F:Purchases,Peterborough Office,Carillion Services Ltd,Large,1049948,57.71,"Furniture, Fixtures & Fittings Purchases",Administration
Land Registry,Land Registry,20/02/2015,FF&F:Purchases,Telford Office,Carillion Services Ltd,Large,1049948,"1,193.77","Furniture, Fixtures & Fittings Purchases",Administration
Land Registry,Land Registry,20/02/2015,FF&F:Purchases,Wales Office,Carillion Services Ltd,Large,1049948,"2,090.05","Furniture, Fixtures & Fittings Purchases",Administration
Land Registry,Land Registry,20/02/2015,FF&F:Purchases,Weymouth Office,Carillion Services Ltd,Large,1049948,"2,881.54","Furniture, Fixtures & Fittings Purchases",Administration
Land Registry,Land Registry,20/02/2015,FF&F:Purchases,Governance & Policy,Carillion Services Ltd,Large,1049948,"2,143.62","Furniture, Fixtures & Fittings Purchases",Administration
Land Registry,Land Registry,20/02/2015,FM Ext Helpdesk,Birkenhead Office,Carillion Services Ltd,Large,1049948,469.69,Facilities External Helpdesk,Administration
Land Registry,Land Registry,20/02/2015,FM Ext Helpdesk,Coventry Office,Carillion Services Ltd,Large,1049948,953.05,Facilities External Helpdesk,Administration
Land Registry,Land Registry,20/02/2015,FM Ext Helpdesk,Croydon Office,Carillion Services Ltd,Large,1049948,565.37,Facilities External Helpdesk,Administration
Land Registry,Land Registry,20/02/2015,FM Ext Helpdesk,Durham Office,Carillion Services Ltd,Large,1049948,589.49,Facilities External Helpdesk,Administration
Land Registry,Land Registry,20/02/2015,FM Ext Helpdesk,Gloucester Office,Carillion Services Ltd,Large,1049948,590.42,Facilities External Helpdesk,Administration
Land Registry,Land Registry,20/02/2015,FM Ext Helpdesk,Hull Office,Carillion Services Ltd,Large,1049948,460.70,Facilities External Helpdesk,Administration
Land Registry,Land Registry,20/02/2015,FM Ext Helpdesk,Fylde Office,Carillion Services Ltd,Large,1049948,409.95,Facilities External Helpdesk,Administration
Land Registry,Land Registry,20/02/2015,FM Ext Helpdesk,Leicester Office,Carillion Services Ltd,Large,1049948,515.68,Facilities External Helpdesk,Administration
Land Registry,Land Registry,20/02/2015,FM Ext Helpdesk,Nottingham Office,Carillion Services Ltd,Large,1049948,"1,821.62",Facilities External Helpdesk,Administration
Land Registry,Land Registry,20/02/2015,FM Ext Helpdesk,Peterborough Office,Carillion Services Ltd,Large,1049948,601.66,Facilities External Helpdesk,Administration
Land Registry,Land Registry,20/02/2015,FM Ext Helpdesk,Telford Office,Carillion Services Ltd,Large,1049948,622.59,Facilities External Helpdesk,Administration
Land Registry,Land Registry,20/02/2015,FM Ext Helpdesk,Wales Office,Carillion Services Ltd,Large,1049948,446.36,Facilities External Helpdesk,Administration
Land Registry,Land Registry,20/02/2015,FM Ext Helpdesk,Weymouth Office,Carillion Services Ltd,Large,1049948,362.86,Facilities External Helpdesk,Administration
Land Registry,Land Registry,20/02/2015,FM Ext Helpdesk,Governance & Policy,Carillion Services Ltd,Large,1049948,"1,497.55",Facilities External Helpdesk,Administration
Land Registry,Land Registry,20/02/2015,FM Ext Helpdesk,Gloucester Computer Centre,Carillion Services Ltd,Large,1049948,547.73,Facilities External Helpdesk,Administration
Land Registry,Land Registry,20/02/2015,FM Ext Helpdesk,RFS4 - Coventry,Carillion Services Ltd,Large,1049948,7.88,Facilities External Helpdesk,Administration
Land Registry,Land Registry,20/02/2015,FM Managed Services,Durham Office,Carillion Services Ltd,Large,1049948,321.00,Facilities Managed Services,Administration
Land Registry,Land Registry,20/02/2015,FM Managed Services,Governance & Policy,Carillion Services Ltd,Large,1049948,"4,076.70",Facilities Managed Services,Administration
Land Registry,Land Registry,20/02/2015,FM Managed Services,Birkenhead Office,Carillion Services Ltd,Large,1049948,"6,485.19",Facilities Managed Services,Administration
Land Registry,Land Registry,20/02/2015,FM Managed Services,Coventry Office,Carillion Services Ltd,Large,1049948,"7,908.38",Facilities Managed Services,Administration
Land Registry,Land Registry,20/02/2015,FM Managed Services,Croydon Office,Carillion Services Ltd,Large,1049948,"6,572.17",Facilities Managed Services,Administration
Land Registry,Land Registry,20/02/2015,FM Managed Services,Durham Office,Carillion Services Ltd,Large,1049948,"6,310.20",Facilities Managed Services,Administration
Land Registry,Land Registry,20/02/2015,FM Managed Services,Gloucester Office,Carillion Services Ltd,Large,1049948,"3,505.02",Facilities Managed Services,Administration
Land Registry,Land Registry,20/02/2015,FM Managed Services,Hull Office,Carillion Services Ltd,Large,1049948,"5,992.66",Facilities Managed Services,Administration
Land Registry,Land Registry,20/02/2015,FM Managed Services,Fylde Office,Carillion Services Ltd,Large,1049948,"6,161.69",Facilities Managed Services,Administration
Land Registry,Land Registry,20/02/2015,FM Managed Services,Leicester Office,Carillion Services Ltd,Large,1049948,"6,942.86",Facilities Managed Services,Administration
Land Registry,Land Registry,20/02/2015,FM Managed Services,Nottingham Office,Carillion Services Ltd,Large,1049948,"11,655.43",Facilities Managed Services,Administration
Land Registry,Land Registry,20/02/2015,FM Managed Services,Peterborough Office,Carillion Services Ltd,Large,1049948,"6,018.83",Facilities Managed Services,Administration
Land Registry,Land Registry,20/02/2015,FM Managed Services,Telford Office,Carillion Services Ltd,Large,1049948,"6,504.77",Facilities Managed Services,Administration
Land Registry,Land Registry,20/02/2015,FM Managed Services,Wales Office,Carillion Services Ltd,Large,1049948,"6,033.36",Facilities Managed Services,Administration
Land Registry,Land Registry,20/02/2015,FM Managed Services,Weymouth Office,Carillion Services Ltd,Large,1049948,"6,153.46",Facilities Managed Services,Administration
Land Registry,Land Registry,20/02/2015,FM Managed Services,Governance & Policy,Carillion Services Ltd,Large,1049948,"14,497.87",Facilities Managed Services,Administration
Land Registry,Land Registry,20/02/2015,FM Managed Services,Gloucester Computer Centre,Carillion Services Ltd,Large,1049948,"2,872.08",Facilities Managed Services,Administration
Land Registry,Land Registry,20/02/2015,FM Managed Services,RFS4 - Coventry,Carillion Services Ltd,Large,1049948,27.04,Facilities Managed Services,Administration
Land Registry,Land Registry,23/02/2015,Gas,Birkenhead Office,Carillion Services Ltd,Large,1050252,"2,229.61",Gas,Administration
Land Registry,Land Registry,23/02/2015,Gas,Coventry Office,Carillion Services Ltd,Large,1050252,"5,666.90",Gas,Administration
Land Registry,Land Registry,23/02/2015,Gas,Croydon Office,Carillion Services Ltd,Large,1050252,"3,605.13",Gas,Administration
Land Registry,Land Registry,23/02/2015,Gas,Durham Office,Carillion Services Ltd,Large,1050252,"2,113.84",Gas,Administration
Land Registry,Land Registry,23/02/2015,Gas,Gloucester Office,Carillion Services Ltd,Large,1050252,"2,648.48",Gas,Administration
Land Registry,Land Registry,23/02/2015,Gas,Hull Office,Carillion Services Ltd,Large,1050252,"4,051.66",Gas,Administration
Land Registry,Land Registry,23/02/2015,Gas,Fylde Office,Carillion Services Ltd,Large,1050252,"2,216.27",Gas,Administration
Land Registry,Land Registry,23/02/2015,Gas,Leicester Office,Carillion Services Ltd,Large,1050252,"1,022.42",Gas,Administration
Land Registry,Land Registry,23/02/2015,Gas,Nottingham Office,Carillion Services Ltd,Large,1050252,"-2,096.27",Gas,Administration
Land Registry,Land Registry,23/02/2015,Gas,Telford Office,Carillion Services Ltd,Large,1050252,"2,463.62",Gas,Administration
Land Registry,Land Registry,23/02/2015,Gas,Wales Office,Carillion Services Ltd,Large,1050252,"1,522.38",Gas,Administration
Land Registry,Land Registry,23/02/2015,Gas,Weymouth Office,Carillion Services Ltd,Large,1050252,"1,966.93",Gas,Administration
Land Registry,Land Registry,23/02/2015,Gas,Governance & Policy,Carillion Services Ltd,Large,1050252,"5,032.19",Gas,Administration
Land Registry,Land Registry,23/02/2015,Gas,Gloucester Computer Centre,Carillion Services Ltd,Large,1050252,615.64,Gas,Administration
Land Registry,Land Registry,23/02/2015,Gas,Dir: HR,Carillion Services Ltd,Large,1050252,"1,654.27",Gas,Administration
Land Registry,Land Registry,20/02/2015,Grounds Maintenance,Birkenhead Office,Carillion Services Ltd,Large,1049948,332.00,Grounds Maintenance,Administration
Land Registry,Land Registry,20/02/2015,Grounds Maintenance,Coventry Office,Carillion Services Ltd,Large,1049948,"1,443.75",Grounds Maintenance,Administration
Land Registry,Land Registry,20/02/2015,Grounds Maintenance,Durham Office,Carillion Services Ltd,Large,1049948,"1,833.50",Grounds Maintenance,Administration
Land Registry,Land Registry,20/02/2015,Grounds Maintenance,Gloucester Office,Carillion Services Ltd,Large,1049948,"3,562.69",Grounds Maintenance,Administration
Land Registry,Land Registry,20/02/2015,Grounds Maintenance,Hull Office,Carillion Services Ltd,Large,1049948,"1,457.40",Grounds Maintenance,Administration
Land Registry,Land Registry,20/02/2015,Grounds Maintenance,Fylde Office,Carillion Services Ltd,Large,1049948,311.25,Grounds Maintenance,Administration
Land Registry,Land Registry,20/02/2015,Grounds Maintenance,Leicester Office,Carillion Services Ltd,Large,1049948,"1,089.37",Grounds Maintenance,Administration
Land Registry,Land Registry,20/02/2015,Grounds Maintenance,Telford Office,Carillion Services Ltd,Large,1049948,846.25,Grounds Maintenance,Administration
Land Registry,Land Registry,20/02/2015,Grounds Maintenance,Wales Office,Carillion Services Ltd,Large,1049948,544.69,Grounds Maintenance,Administration
Land Registry,Land Registry,20/02/2015,Grounds Maintenance,Weymouth Office,Carillion Services Ltd,Large,1049948,"1,159.83",Grounds Maintenance,Administration
Land Registry,Land Registry,20/02/2015,Grounds Maintenance,Governance & Policy,Carillion Services Ltd,Large,1049948,"3,853.55",Grounds Maintenance,Administration
Land Registry,Land Registry,20/02/2015,Grounds Maintenance,Gloucester Computer Centre,Carillion Services Ltd,Large,1049948,"1,017.19",Grounds Maintenance,Administration
Land Registry,Land Registry,20/02/2015,Grounds Maintenance,Birkenhead Office,Carillion Services Ltd,Large,1049948,360.91,Grounds Maintenance,Administration
Land Registry,Land Registry,20/02/2015,Grounds Maintenance,Coventry Office,Carillion Services Ltd,Large,1049948,683.02,Grounds Maintenance,Administration
Land Registry,Land Registry,20/02/2015,Grounds Maintenance,Croydon Office,Carillion Services Ltd,Large,1049948,68.04,Grounds Maintenance,Administration
Land Registry,Land Registry,20/02/2015,Grounds Maintenance,Durham Office,Carillion Services Ltd,Large,1049948,845.33,Grounds Maintenance,Administration
Land Registry,Land Registry,20/02/2015,Grounds Maintenance,Gloucester Office,Carillion Services Ltd,Large,1049948,646.08,Grounds Maintenance,Administration
Land Registry,Land Registry,20/02/2015,Grounds Maintenance,Hull Office,Carillion Services Ltd,Large,1049948,646.08,Grounds Maintenance,Administration
Land Registry,Land Registry,20/02/2015,Grounds Maintenance,Fylde Office,Carillion Services Ltd,Large,1049948,"1,578.69",Grounds Maintenance,Administration
Land Registry,Land Registry,20/02/2015,Grounds Maintenance,Leicester Office,Carillion Services Ltd,Large,1049948,204.04,Grounds Maintenance,Administration
Land Registry,Land Registry,20/02/2015,Grounds Maintenance,Nottingham Office,Carillion Services Ltd,Large,1049948,327.55,Grounds Maintenance,Administration
Land Registry,Land Registry,20/02/2015,Grounds Maintenance,Telford Office,Carillion Services Ltd,Large,1049948,"1,113.38",Grounds Maintenance,Administration
Land Registry,Land Registry,20/02/2015,Grounds Maintenance,Wales Office,Carillion Services Ltd,Large,1049948,479.33,Grounds Maintenance,Administration
Land Registry,Land Registry,20/02/2015,Grounds Maintenance,Weymouth Office,Carillion Services Ltd,Large,1049948,744.67,Grounds Maintenance,Administration
Land Registry,Land Registry,20/02/2015,Grounds Maintenance,Governance & Policy,Carillion Services Ltd,Large,1049948,"1,544.25",Grounds Maintenance,Administration
Land Registry,Land Registry,20/02/2015,Grounds Maintenance,Gloucester Computer Centre,Carillion Services Ltd,Large,1049948,95.54,Grounds Maintenance,Administration
Land Registry,Land Registry,20/02/2015,Office Cleaning Expenses,Croydon Office,Carillion Services Ltd,Large,1049948,"2,705.50",Office Cleaning Expenses,Administration
Land Registry,Land Registry,20/02/2015,Office Cleaning Expenses,Hull Office,Carillion Services Ltd,Large,1049948,31.71,Office Cleaning Expenses,Administration
Land Registry,Land Registry,20/02/2015,Office Cleaning Expenses,Governance & Policy,Carillion Services Ltd,Large,1049948,639.33,Office Cleaning Expenses,Administration
Land Registry,Land Registry,20/02/2015,Office Cleaning Expenses,Dir: HR,Carillion Services Ltd,Large,1049948,"1,086.75",Office Cleaning Expenses,Administration
Land Registry,Land Registry,20/02/2015,Office Cleaning Expenses,Birkenhead Office,Carillion Services Ltd,Large,1049948,"6,259.65",Office Cleaning Expenses,Administration
Land Registry,Land Registry,20/02/2015,Office Cleaning Expenses,Coventry Office,Carillion Services Ltd,Large,1049948,"6,465.20",Office Cleaning Expenses,Administration
Land Registry,Land Registry,20/02/2015,Office Cleaning Expenses,Croydon Office,Carillion Services Ltd,Large,1049948,"4,639.20",Office Cleaning Expenses,Administration
Land Registry,Land Registry,20/02/2015,Office Cleaning Expenses,Durham Office,Carillion Services Ltd,Large,1049948,"6,281.85",Office Cleaning Expenses,Administration
Land Registry,Land Registry,20/02/2015,Office Cleaning Expenses,Gloucester Office,Carillion Services Ltd,Large,1049948,"7,088.19",Office Cleaning Expenses,Administration
Land Registry,Land Registry,20/02/2015,Office Cleaning Expenses,Hull Office,Carillion Services Ltd,Large,1049948,"4,004.43",Office Cleaning Expenses,Administration
Land Registry,Land Registry,20/02/2015,Office Cleaning Expenses,Fylde Office,Carillion Services Ltd,Large,1049948,"4,780.10",Office Cleaning Expenses,Administration
Land Registry,Land Registry,20/02/2015,Office Cleaning Expenses,Leicester Office,Carillion Services Ltd,Large,1049948,"4,111.23",Office Cleaning Expenses,Administration
Land Registry,Land Registry,20/02/2015,Office Cleaning Expenses,Nottingham Office,Carillion Services Ltd,Large,1049948,"6,457.90",Office Cleaning Expenses,Administration
Land Registry,Land Registry,20/02/2015,Office Cleaning Expenses,Peterborough Office,Carillion Services Ltd,Large,1049948,"3,099.37",Office Cleaning Expenses,Administration
Land Registry,Land Registry,20/02/2015,Office Cleaning Expenses,Telford Office,Carillion Services Ltd,Large,1049948,"6,490.57",Office Cleaning Expenses,Administration
Land Registry,Land Registry,20/02/2015,Office Cleaning Expenses,Wales Office,Carillion Services Ltd,Large,1049948,"4,160.48",Office Cleaning Expenses,Administration
Land Registry,Land Registry,20/02/2015,Office Cleaning Expenses,Weymouth Office,Carillion Services Ltd,Large,1049948,"4,427.06",Office Cleaning Expenses,Administration
Land Registry,Land Registry,20/02/2015,Office Cleaning Expenses,Governance & Policy,Carillion Services Ltd,Large,1049948,"9,642.44",Office Cleaning Expenses,Administration
Land Registry,Land Registry,20/02/2015,Office Cleaning Expenses,Gloucester Computer Centre,Carillion Services Ltd,Large,1049948,548.86,Office Cleaning Expenses,Administration
Land Registry,Land Registry,20/02/2015,Office Cleaning Expenses,Dir: HR,Carillion Services Ltd,Large,1049948,283.20,Office Cleaning Expenses,Administration
Land Registry,Land Registry,20/02/2015,Pest Control,Durham Office,Carillion Services Ltd,Large,1049948,321.00,Pest Control,Administration
Land Registry,Land Registry,20/02/2015,Pest Control,Leicester Office,Carillion Services Ltd,Large,1049948,199.02,Pest Control,Administration
Land Registry,Land Registry,20/02/2015,Pest Control,Weymouth Office,Carillion Services Ltd,Large,1049948,"8,104.63",Pest Control,Administration
Land Registry,Land Registry,20/02/2015,Pest Control,Birkenhead Office,Carillion Services Ltd,Large,1049948,41.24,Pest Control,Administration
Land Registry,Land Registry,20/02/2015,Pest Control,Coventry Office,Carillion Services Ltd,Large,1049948,52.57,Pest Control,Administration
Land Registry,Land Registry,20/02/2015,Pest Control,Croydon Office,Carillion Services Ltd,Large,1049948,39.60,Pest Control,Administration
Land Registry,Land Registry,20/02/2015,Pest Control,Durham Office,Carillion Services Ltd,Large,1049948,48.24,Pest Control,Administration
Land Registry,Land Registry,20/02/2015,Pest Control,Gloucester Office,Carillion Services Ltd,Large,1049948,46.00,Pest Control,Administration
Land Registry,Land Registry,20/02/2015,Pest Control,Hull Office,Carillion Services Ltd,Large,1049948,49.28,Pest Control,Administration
Land Registry,Land Registry,20/02/2015,Pest Control,Fylde Office,Carillion Services Ltd,Large,1049948,38.99,Pest Control,Administration
Land Registry,Land Registry,20/02/2015,Pest Control,Leicester Office,Carillion Services Ltd,Large,1049948,38.99,Pest Control,Administration
Land Registry,Land Registry,20/02/2015,Pest Control,Nottingham Office,Carillion Services Ltd,Large,1049948,133.15,Pest Control,Administration
Land Registry,Land Registry,20/02/2015,Pest Control,Peterborough Office,Carillion Services Ltd,Large,1049948,40.55,Pest Control,Administration
Land Registry,Land Registry,20/02/2015,Pest Control,Telford Office,Carillion Services Ltd,Large,1049948,44.27,Pest Control,Administration
Land Registry,Land Registry,20/02/2015,Pest Control,Wales Office,Carillion Services Ltd,Large,1049948,58.45,Pest Control,Administration
Land Registry,Land Registry,20/02/2015,Pest Control,Weymouth Office,Carillion Services Ltd,Large,1049948,41.24,Pest Control,Administration
Land Registry,Land Registry,20/02/2015,Pest Control,Governance & Policy,Carillion Services Ltd,Large,1049948,141.88,Pest Control,Administration
Land Registry,Land Registry,20/02/2015,Pest Control,Gloucester Computer Centre,Carillion Services Ltd,Large,1049948,28.19,Pest Control,Administration
Land Registry,Land Registry,20/02/2015,Pest Control,RFS4 - Coventry,Carillion Services Ltd,Large,1049948,52.57,Pest Control,Administration
Land Registry,Land Registry,20/02/2015,Property Maintenance,Birkenhead Office,Carillion Services Ltd,Large,1049948,"5,354.43",Property Maintenance,Administration
Land Registry,Land Registry,20/02/2015,Property Maintenance,Coventry Office,Carillion Services Ltd,Large,1049948,"-2,973.39",Property Maintenance,Administration
Land Registry,Land Registry,20/02/2015,Property Maintenance,Croydon Office,Carillion Services Ltd,Large,1049948,"16,739.40",Property Maintenance,Administration
Land Registry,Land Registry,20/02/2015,Property Maintenance,Durham Office,Carillion Services Ltd,Large,1049948,"4,160.44",Property Maintenance,Administration
Land Registry,Land Registry,20/02/2015,Property Maintenance,Gloucester Office,Carillion Services Ltd,Large,1049948,"12,055.98",Property Maintenance,Administration
Land Registry,Land Registry,20/02/2015,Property Maintenance,Hull Office,Carillion Services Ltd,Large,1049948,"14,086.50",Property Maintenance,Administration
Land Registry,Land Registry,20/02/2015,Property Maintenance,Fylde Office,Carillion Services Ltd,Large,1049948,"3,911.71",Property Maintenance,Administration
Land Registry,Land Registry,20/02/2015,Property Maintenance,Leicester Office,Carillion Services Ltd,Large,1049948,"10,397.83",Property Maintenance,Administration
Land Registry,Land Registry,20/02/2015,Property Maintenance,Nottingham Office,Carillion Services Ltd,Large,1049948,-937.98,Property Maintenance,Administration
Land Registry,Land Registry,20/02/2015,Property Maintenance,Peterborough Office,Carillion Services Ltd,Large,1049948,"1,773.65",Property Maintenance,Administration
Land Registry,Land Registry,20/02/2015,Property Maintenance,Telford Office,Carillion Services Ltd,Large,1049948,"2,562.30",Property Maintenance,Administration
Land Registry,Land Registry,20/02/2015,Property Maintenance,Wales Office,Carillion Services Ltd,Large,1049948,"26,707.40",Property Maintenance,Administration
Land Registry,Land Registry,20/02/2015,Property Maintenance,Weymouth Office,Carillion Services Ltd,Large,1049948,469.90,Property Maintenance,Administration
Land Registry,Land Registry,20/02/2015,Property Maintenance,Governance & Policy,Carillion Services Ltd,Large,1049948,"15,820.83",Property Maintenance,Administration
Land Registry,Land Registry,20/02/2015,Property Maintenance,Gloucester Computer Centre,Carillion Services Ltd,Large,1049948,"18,454.79",Property Maintenance,Administration
Land Registry,Land Registry,20/02/2015,Property Maintenance,Birkenhead Office,Carillion Services Ltd,Large,1049948,"6,964.91",Property Maintenance,Administration
Land Registry,Land Registry,20/02/2015,Property Maintenance,Coventry Office,Carillion Services Ltd,Large,1049948,"14,051.50",Property Maintenance,Administration
Land Registry,Land Registry,20/02/2015,Property Maintenance,Croydon Office,Carillion Services Ltd,Large,1049948,"9,836.08",Property Maintenance,Administration
Land Registry,Land Registry,20/02/2015,Property Maintenance,Durham Office,Carillion Services Ltd,Large,1049948,"8,037.73",Property Maintenance,Administration
Land Registry,Land Registry,20/02/2015,Property Maintenance,Gloucester Office,Carillion Services Ltd,Large,1049948,"4,971.16",Property Maintenance,Administration
Land Registry,Land Registry,20/02/2015,Property Maintenance,Hull Office,Carillion Services Ltd,Large,1049948,"8,171.33",Property Maintenance,Administration
Land Registry,Land Registry,20/02/2015,Property Maintenance,Fylde Office,Carillion Services Ltd,Large,1049948,"5,455.44",Property Maintenance,Administration
Land Registry,Land Registry,20/02/2015,Property Maintenance,Leicester Office,Carillion Services Ltd,Large,1049948,"11,296.49",Property Maintenance,Administration
Land Registry,Land Registry,20/02/2015,Property Maintenance,Nottingham Office,Carillion Services Ltd,Large,1049948,"7,781.79",Property Maintenance,Administration
Land Registry,Land Registry,20/02/2015,Property Maintenance,Peterborough Office,Carillion Services Ltd,Large,1049948,"4,875.32",Property Maintenance,Administration
Land Registry,Land Registry,20/02/2015,Property Maintenance,Telford Office,Carillion Services Ltd,Large,1049948,"7,913.75",Property Maintenance,Administration
Land Registry,Land Registry,20/02/2015,Property Maintenance,Wales Office,Carillion Services Ltd,Large,1049948,"6,854.92",Property Maintenance,Administration
Land Registry,Land Registry,20/02/2015,Property Maintenance,Weymouth Office,Carillion Services Ltd,Large,1049948,"3,942.28",Property Maintenance,Administration
Land Registry,Land Registry,20/02/2015,Property Maintenance,Governance & Policy,Carillion Services Ltd,Large,1049948,"20,417.36",Property Maintenance,Administration
Land Registry,Land Registry,20/02/2015,Property Maintenance,Gloucester Computer Centre,Carillion Services Ltd,Large,1049948,"8,638.67",Property Maintenance,Administration
Land Registry,Land Registry,20/02/2015,Property Maintenance,RFS4 - Coventry,Carillion Services Ltd,Large,1049948,23.78,Property Maintenance,Administration
Land Registry,Land Registry,20/02/2015,Property Management; Other Fees,Dir: HR,Carillion Services Ltd,Large,1049948,"2,130.37",Property Management; Other Fees,Administration
Land Registry,Land Registry,20/02/2015,Security Expenses,Birkenhead Office,Carillion Services Ltd,Large,1049948,270.67,Security Expenses,Administration
Land Registry,Land Registry,20/02/2015,Security Expenses,Coventry Office,Carillion Services Ltd,Large,1049948,556.40,Security Expenses,Administration
Land Registry,Land Registry,20/02/2015,Security Expenses,Croydon Office,Carillion Services Ltd,Large,1049948,"2,311.72",Security Expenses,Administration
Land Registry,Land Registry,20/02/2015,Security Expenses,Durham Office,Carillion Services Ltd,Large,1049948,382.30,Security Expenses,Administration
Land Registry,Land Registry,20/02/2015,Security Expenses,Gloucester Office,Carillion Services Ltd,Large,1049948,"3,624.33",Security Expenses,Administration
Land Registry,Land Registry,20/02/2015,Security Expenses,Hull Office,Carillion Services Ltd,Large,1049948,524.62,Security Expenses,Administration
Land Registry,Land Registry,20/02/2015,Security Expenses,Fylde Office,Carillion Services Ltd,Large,1049948,"6,194.67",Security Expenses,Administration
Land Registry,Land Registry,20/02/2015,Security Expenses,Leicester Office,Carillion Services Ltd,Large,1049948,"1,235.50",Security Expenses,Administration
Land Registry,Land Registry,20/02/2015,Security Expenses,Nottingham Office,Carillion Services Ltd,Large,1049948,"1,736.95",Security Expenses,Administration
Land Registry,Land Registry,20/02/2015,Security Expenses,Telford Office,Carillion Services Ltd,Large,1049948,974.12,Security Expenses,Administration
Land Registry,Land Registry,20/02/2015,Security Expenses,Wales Office,Carillion Services Ltd,Large,1049948,"4,214.05",Security Expenses,Administration
Land Registry,Land Registry,20/02/2015,Security Expenses,Weymouth Office,Carillion Services Ltd,Large,1049948,827.07,Security Expenses,Administration
Land Registry,Land Registry,20/02/2015,Security Expenses,Governance & Policy,Carillion Services Ltd,Large,1049948,285.58,Security Expenses,Administration
Land Registry,Land Registry,20/02/2015,Security Expenses,Gloucester Computer Centre,Carillion Services Ltd,Large,1049948,923.84,Security Expenses,Administration
Land Registry,Land Registry,20/02/2015,Security Expenses,Birkenhead Office,Carillion Services Ltd,Large,1049948,"2,841.14",Security Expenses,Administration
Land Registry,Land Registry,20/02/2015,Security Expenses,Coventry Office,Carillion Services Ltd,Large,1049948,"6,755.62",Security Expenses,Administration
Land Registry,Land Registry,20/02/2015,Security Expenses,Croydon Office,Carillion Services Ltd,Large,1049948,"8,596.67",Security Expenses,Administration
Land Registry,Land Registry,20/02/2015,Security Expenses,Durham Office,Carillion Services Ltd,Large,1049948,"2,484.67",Security Expenses,Administration
Land Registry,Land Registry,20/02/2015,Security Expenses,Gloucester Office,Carillion Services Ltd,Large,1049948,"9,259.51",Security Expenses,Administration
Land Registry,Land Registry,20/02/2015,Security Expenses,Hull Office,Carillion Services Ltd,Large,1049948,"2,819.19",Security Expenses,Administration
Land Registry,Land Registry,20/02/2015,Security Expenses,Fylde Office,Carillion Services Ltd,Large,1049948,"2,246.64",Security Expenses,Administration
Land Registry,Land Registry,20/02/2015,Security Expenses,Leicester Office,Carillion Services Ltd,Large,1049948,"2,536.86",Security Expenses,Administration
Land Registry,Land Registry,20/02/2015,Security Expenses,Nottingham Office,Carillion Services Ltd,Large,1049948,"3,237.76",Security Expenses,Administration
Land Registry,Land Registry,20/02/2015,Security Expenses,Telford Office,Carillion Services Ltd,Large,1049948,"2,772.19",Security Expenses,Administration
Land Registry,Land Registry,20/02/2015,Security Expenses,Wales Office,Carillion Services Ltd,Large,1049948,"2,508.57",Security Expenses,Administration
Land Registry,Land Registry,20/02/2015,Security Expenses,Weymouth Office,Carillion Services Ltd,Large,1049948,"2,774.78",Security Expenses,Administration
Land Registry,Land Registry,20/02/2015,Security Expenses,Governance & Policy,Carillion Services Ltd,Large,1049948,"18,852.44",Security Expenses,Administration
Land Registry,Land Registry,20/02/2015,Security Expenses,Gloucester Computer Centre,Carillion Services Ltd,Large,1049948,"7,306.35",Security Expenses,Administration
Land Registry,Land Registry,20/02/2015,Vending Machine Consumables & Repairs,Gloucester Office,Carillion Services Ltd,Large,1049948,88.94,Vending Machine Consumables & Repairs,Administration
Land Registry,Land Registry,20/02/2015,Vending Machine Consumables & Repairs,Birkenhead Office,Carillion Services Ltd,Large,1049948,"1,101.77",Vending Machine Consumables & Repairs,Administration
Land Registry,Land Registry,20/02/2015,Vending Machine Consumables & Repairs,Coventry Office,Carillion Services Ltd,Large,1049948,176.38,Vending Machine Consumables & Repairs,Administration
Land Registry,Land Registry,20/02/2015,Vending Machine Consumables & Repairs,Croydon Office,Carillion Services Ltd,Large,1049948,223.93,Vending Machine Consumables & Repairs,Administration
Land Registry,Land Registry,20/02/2015,Vending Machine Consumables & Repairs,Durham Office,Carillion Services Ltd,Large,1049948,44.09,Vending Machine Consumables & Repairs,Administration
Land Registry,Land Registry,20/02/2015,Vending Machine Consumables & Repairs,Gloucester Office,Carillion Services Ltd,Large,1049948,144.21,Vending Machine Consumables & Repairs,Administration
Land Registry,Land Registry,20/02/2015,Vending Machine Consumables & Repairs,Hull Office,Carillion Services Ltd,Large,1049948,346.87,Vending Machine Consumables & Repairs,Administration
Land Registry,Land Registry,20/02/2015,Vending Machine Consumables & Repairs,Fylde Office,Carillion Services Ltd,Large,1049948,157.35,Vending Machine Consumables & Repairs,Administration
Land Registry,Land Registry,20/02/2015,Vending Machine Consumables & Repairs,Leicester Office,Carillion Services Ltd,Large,1049948,116.03,Vending Machine Consumables & Repairs,Administration
Land Registry,Land Registry,20/02/2015,Vending Machine Consumables & Repairs,Nottingham Office,Carillion Services Ltd,Large,1049948,129.69,Vending Machine Consumables & Repairs,Administration
Land Registry,Land Registry,20/02/2015,Vending Machine Consumables & Repairs,Telford Office,Carillion Services Ltd,Large,1049948,198.08,Vending Machine Consumables & Repairs,Administration
Land Registry,Land Registry,20/02/2015,Vending Machine Consumables & Repairs,Wales Office,Carillion Services Ltd,Large,1049948,194.19,Vending Machine Consumables & Repairs,Administration
Land Registry,Land Registry,20/02/2015,Vending Machine Consumables & Repairs,Weymouth Office,Carillion Services Ltd,Large,1049948,112.40,Vending Machine Consumables & Repairs,Administration
Land Registry,Land Registry,20/02/2015,Vending Machine Consumables & Repairs,Governance & Policy,Carillion Services Ltd,Large,1049948,218.04,Vending Machine Consumables & Repairs,Administration
Land Registry,Land Registry,20/02/2015,Vending Machine Consumables & Repairs,Gloucester Computer Centre,Carillion Services Ltd,Large,1049948,20.06,Vending Machine Consumables & Repairs,Administration
Land Registry,Land Registry,20/02/2015,Waste Disposal,Birkenhead Office,Carillion Services Ltd,Large,1049948,277.13,Waste Disposal,Administration
Land Registry,Land Registry,20/02/2015,Waste Disposal,Coventry Office,Carillion Services Ltd,Large,1049948,915.36,Waste Disposal,Administration
Land Registry,Land Registry,20/02/2015,Waste Disposal,Gloucester Office,Carillion Services Ltd,Large,1049948,"4,667.55",Waste Disposal,Administration
Land Registry,Land Registry,20/02/2015,Waste Disposal,Hull Office,Carillion Services Ltd,Large,1049948,25.94,Waste Disposal,Administration
Land Registry,Land Registry,20/02/2015,Waste Disposal,Fylde Office,Carillion Services Ltd,Large,1049948,210.87,Waste Disposal,Administration
Land Registry,Land Registry,20/02/2015,Waste Disposal,Nottingham Office,Carillion Services Ltd,Large,1049948,62.25,Waste Disposal,Administration
Land Registry,Land Registry,20/02/2015,Waste Disposal,Telford Office,Carillion Services Ltd,Large,1049948,335.11,Waste Disposal,Administration
Land Registry,Land Registry,20/02/2015,Waste Disposal,Wales Office,Carillion Services Ltd,Large,1049948,4.86,Waste Disposal,Administration
Land Registry,Land Registry,20/02/2015,Waste Disposal,Weymouth Office,Carillion Services Ltd,Large,1049948,382.82,Waste Disposal,Administration
Land Registry,Land Registry,20/02/2015,Waste Disposal,Governance & Policy,Carillion Services Ltd,Large,1049948,154.95,Waste Disposal,Administration
Land Registry,Land Registry,20/02/2015,Waste Disposal,Birkenhead Office,Carillion Services Ltd,Large,1049948,289.64,Waste Disposal,Administration
Land Registry,Land Registry,20/02/2015,Waste Disposal,Coventry Office,Carillion Services Ltd,Large,1049948,242.08,Waste Disposal,Administration
Land Registry,Land Registry,20/02/2015,Waste Disposal,Croydon Office,Carillion Services Ltd,Large,1049948,212.07,Waste Disposal,Administration
Land Registry,Land Registry,20/02/2015,Waste Disposal,Durham Office,Carillion Services Ltd,Large,1049948,337.19,Waste Disposal,Administration
Land Registry,Land Registry,20/02/2015,Waste Disposal,Gloucester Office,Carillion Services Ltd,Large,1049948,251.33,Waste Disposal,Administration
Land Registry,Land Registry,20/02/2015,Waste Disposal,Hull Office,Carillion Services Ltd,Large,1049948,189.59,Waste Disposal,Administration
Land Registry,Land Registry,20/02/2015,Waste Disposal,Fylde Office,Carillion Services Ltd,Large,1049948,259.55,Waste Disposal,Administration
Land Registry,Land Registry,20/02/2015,Waste Disposal,Leicester Office,Carillion Services Ltd,Large,1049948,274.24,Waste Disposal,Administration
Land Registry,Land Registry,20/02/2015,Waste Disposal,Nottingham Office,Carillion Services Ltd,Large,1049948,337.19,Waste Disposal,Administration
Land Registry,Land Registry,20/02/2015,Waste Disposal,Telford Office,Carillion Services Ltd,Large,1049948,242.52,Waste Disposal,Administration
Land Registry,Land Registry,20/02/2015,Waste Disposal,Wales Office,Carillion Services Ltd,Large,1049948,209.06,Waste Disposal,Administration
Land Registry,Land Registry,20/02/2015,Waste Disposal,Weymouth Office,Carillion Services Ltd,Large,1049948,172.37,Waste Disposal,Administration
Land Registry,Land Registry,20/02/2015,Waste Disposal,Governance & Policy,Carillion Services Ltd,Large,1049948,663.35,Waste Disposal,Administration
Land Registry,Land Registry,20/02/2015,Waste Disposal,Gloucester Computer Centre,Carillion Services Ltd,Large,1049948,46.09,Waste Disposal,Administration
Land Registry,Land Registry,20/02/2015,Waste Disposal,Dir: HR,Carillion Services Ltd,Large,1049948,69.69,Waste Disposal,Administration
Land Registry,Land Registry,23/02/2015,Water,Durham Office,Carillion Services Ltd,Large,1050252,"3,473.41",Water,Administration
Land Registry,Land Registry,23/02/2015,Water,Gloucester Office,Carillion Services Ltd,Large,1050252,"1,975.75",Water,Administration
Land Registry,Land Registry,23/02/2015,Water,Fylde Office,Carillion Services Ltd,Large,1050252,"4,455.98",Water,Administration
Land Registry,Land Registry,23/02/2015,Water,Nottingham Office,Carillion Services Ltd,Large,1050252,"1,470.74",Water,Administration
Land Registry,Land Registry,23/02/2015,Water,RFS5 - Durham Belmont,Carillion Services Ltd,Large,1050252,27.95,Water,Administration
Land Registry,Land Registry,09/02/2015,Computer Equipment Maintenance,IS Service Delivery,CGI IT UK Limited,Large,1048140,"69,500.00",Computer Equipment Maintenance,Administration
Land Registry,Land Registry,10/02/2015,New Payroll Development,HR,CGI IT UK Limited,Large,1048434,"25,564.00",New Payroll Development,Administration
Land Registry,Land Registry,19/02/2015,New Payroll Development,HR,CGI IT UK Limited,Large,1049859,"32,624.66",New Payroll Development,Administration
Land Registry,Land Registry,02/02/2015,Computer Equipment Hire,IS Service Delivery,CHG-MERIDIAN UK Limited,Large,1047827,"45,820.83",Computer Equipment Hire,Administration
Land Registry,Land Registry,02/02/2015,Computer Equipment Hire,IS Service Delivery,CHG-MERIDIAN UK Limited,Large,1047827,"9,164.17",Computer Equipment Hire,Administration
Land Registry,Land Registry,02/02/2015,Finance Charges on Leases,IS Service Delivery,CHG-MERIDIAN UK Limited,Large,1047824,82.77,Finance Charges on Leases,Administration
Land Registry,Land Registry,02/02/2015,Finance Charges on Leases,IS Service Delivery,CHG-MERIDIAN UK Limited,Large,1047824,16.56,Finance Charges on Leases,Administration
Land Registry,Land Registry,02/02/2015,Finance Lease Obligatns < 1 yr,Balance Sheet,CHG-MERIDIAN UK Limited,Large,1047824,"26,221.57",Finance Lease Obligatns < 1 yr,Administration
Land Registry,Land Registry,02/02/2015,Finance Lease Obligatns < 1 yr,Balance Sheet,CHG-MERIDIAN UK Limited,Large,1047824,"5,244.32",Finance Lease Obligatns < 1 yr,Administration
Land Registry,Land Registry,24/02/2015,Rates Payable,Dir: HR,City of York Council,Large,1050356,"15,213.00",Rates Payable,Administration
Land Registry,Land Registry,16/02/2015,Employment Agency Staff Costs,Dir: (Statutory) Commercial & Customer,Deloitte MCS Ltd,Large,1049280,"122,528.00",Employment Agency Staff Costs,Administration
Land Registry,Land Registry,16/02/2015,Employment Agency Staff Costs,Dir: (Statutory) Commercial & Customer,Deloitte MCS Ltd,Large,1049280,"24,505.60",Employment Agency Staff Costs,Administration
Land Registry,Land Registry,16/02/2015,Professional Services,Dir: (Statutory) Commercial & Customer,Deloitte MCS Ltd,Large,1049280,"17,908.00",Professional Services,Administration
Land Registry,Land Registry,03/02/2015,Transport Fuel,Central Facilities Management Team,Enterprise Rent-A-Car (UK) Ltd,Large,1047641,"2,168.65",Transport Fuel,Administration
Land Registry,Land Registry,03/02/2015,Transport Fuel,Central Facilities Management Team,Enterprise Rent-A-Car (UK) Ltd,Large,1047641,433.73,Transport Fuel,Administration
Land Registry,Land Registry,03/02/2015,Transport Hire of Cars and Vans,Central Facilities Management Team,Enterprise Rent-A-Car (UK) Ltd,Large,1047641,"19,743.39",Transport Hire of Cars and Vans,Administration
Land Registry,Land Registry,02/02/2015,Software as a Service (Cloud),IS Service Delivery,Europa Technologies Limited,SME,1047350,"34,950.00",Software as a Service (Cloud),Administration
Land Registry,Land Registry,11/02/2015,Professional Subscriptions,Technology Group,Gartner UK Limited,Large,1048628,"66,100.00",Professional Subscriptions,Administration
Land Registry,Land Registry,11/02/2015,Professional Subscriptions,Technology Group,Gartner UK Limited,Large,1048628,"13,220.00",Professional Subscriptions,Administration
Land Registry,Land Registry,03/02/2015,National Medical Expenses,HR,Health Management Ltd,Large,1047643,"23,565.40",National Medical Expenses,Administration
Land Registry,Land Registry,03/02/2015,National Medical Expenses,HR,Health Management Ltd,Large,1047643,"4,713.08",National Medical Expenses,Administration
Land Registry,Land Registry,05/02/2015,Computer Equipment Maintenance,IS Service Delivery,Hewlett-Packard Ltd,Large,1047940,"14,347.76",Computer Equipment Maintenance,Administration
Land Registry,Land Registry,05/02/2015,Fixed Asset Interface Account,Balance Sheet,Hewlett-Packard Ltd,Large,1047940,"64,673.47",Fixed Asset Interface Account,Administration
Land Registry,Land Registry,05/02/2015,Fixed Asset Interface Account,Balance Sheet,Hewlett-Packard Ltd,Large,1047940,"12,934.69",Fixed Asset Interface Account,Administration
Land Registry,Land Registry,05/02/2015,Computer Equipment Hire,IS Service Delivery,Insight Software.com Ltd,Large,1047941,"25,920.00",Computer Equipment Hire,Administration
Land Registry,Land Registry,05/02/2015,Computer Equipment Hire,IS Service Delivery,Insight Software.com Ltd,Large,1047941,"5,184.00",Computer Equipment Hire,Administration
Land Registry,Land Registry,13/02/2015,Computer Equipment Maintenance,IS Service Delivery,M-Hance Limited,SME,1049048,"70,591.00",Computer Equipment Maintenance,Administration
Land Registry,Land Registry,17/02/2015,E-Services Usage,Dir: (Add Value) Commercial & Customer,Ordnance Survey,Large,1049454,"50,000.00",E-Services Usage,Administration
Land Registry,Land Registry,27/02/2015,Professional Services,LR Connect Portfolio,PriceWaterhouseCoopers LLP,Large,1050816,"24,556.00",Professional Services,Administration
Land Registry,Land Registry,11/02/2015,Travel & Subsistence General Duty,Birkenhead Office,Redfern Travel Ltd,SME,1048644,252.82,Travel & Subsistence General Duty,Administration
Land Registry,Land Registry,11/02/2015,Travel & Subsistence General Duty,Croydon Office,Redfern Travel Ltd,SME,1048644,314.72,Travel & Subsistence General Duty,Administration
Land Registry,Land Registry,11/02/2015,Travel & Subsistence General Duty,Durham Office,Redfern Travel Ltd,SME,1048644,168.42,Travel & Subsistence General Duty,Administration
Land Registry,Land Registry,11/02/2015,Travel & Subsistence General Duty,Gloucester Office,Redfern Travel Ltd,SME,1048644,-30.96,Travel & Subsistence General Duty,Administration
Land Registry,Land Registry,11/02/2015,Travel & Subsistence General Duty,Hull Office,Redfern Travel Ltd,SME,1048644,43.34,Travel & Subsistence General Duty,Administration
Land Registry,Land Registry,11/02/2015,Travel & Subsistence General Duty,Nottingham Office,Redfern Travel Ltd,SME,1048644,163.36,Travel & Subsistence General Duty,Administration
Land Registry,Land Registry,11/02/2015,Travel & Subsistence General Duty,Peterborough Office,Redfern Travel Ltd,SME,1048644,533.21,Travel & Subsistence General Duty,Administration
Land Registry,Land Registry,11/02/2015,Travel & Subsistence General Duty,Telford Office,Redfern Travel Ltd,SME,1048644,201.29,Travel & Subsistence General Duty,Administration
Land Registry,Land Registry,11/02/2015,Travel & Subsistence General Duty,Wales Office,Redfern Travel Ltd,SME,1048644,73.90,Travel & Subsistence General Duty,Administration
Land Registry,Land Registry,11/02/2015,Travel & Subsistence General Duty,Chief Executives Office,Redfern Travel Ltd,SME,1048644,916.39,Travel & Subsistence General Duty,Administration
Land Registry,Land Registry,11/02/2015,Travel & Subsistence General Duty,Strategy Team,Redfern Travel Ltd,SME,1048644,994.22,Travel & Subsistence General Duty,Administration
Land Registry,Land Registry,11/02/2015,Travel & Subsistence General Duty,HR,Redfern Travel Ltd,SME,1048644,"5,350.27",Travel & Subsistence General Duty,Administration
Land Registry,Land Registry,11/02/2015,Travel & Subsistence General Duty,Employee & Management Support Manager,Redfern Travel Ltd,SME,1048644,-46.68,Travel & Subsistence General Duty,Administration
Land Registry,Land Registry,11/02/2015,Travel & Subsistence General Duty,LR Sports Council,Redfern Travel Ltd,SME,1048644,122.49,Travel & Subsistence General Duty,Administration
Land Registry,Land Registry,11/02/2015,Travel & Subsistence General Duty,Finance Director,Redfern Travel Ltd,SME,1048644,713.96,Travel & Subsistence General Duty,Administration
Land Registry,Land Registry,11/02/2015,Travel & Subsistence General Duty,Finance Group,Redfern Travel Ltd,SME,1048644,71.82,Travel & Subsistence General Duty,Administration
Land Registry,Land Registry,11/02/2015,Travel & Subsistence General Duty,Corp Procurement,Redfern Travel Ltd,SME,1048644,460.47,Travel & Subsistence General Duty,Administration
Land Registry,Land Registry,11/02/2015,Travel & Subsistence General Duty,Internal Audit,Redfern Travel Ltd,SME,1048644,468.76,Travel & Subsistence General Duty,Administration
Land Registry,Land Registry,11/02/2015,Travel & Subsistence General Duty,Director of Operations,Redfern Travel Ltd,SME,1048644,76.85,Travel & Subsistence General Duty,Administration
Land Registry,Land Registry,11/02/2015,Travel & Subsistence General Duty,Central Operations Group,Redfern Travel Ltd,SME,1048644,"5,837.73",Travel & Subsistence General Duty,Administration
Land Registry,Land Registry,11/02/2015,Travel & Subsistence General Duty,Forward Scanning,Redfern Travel Ltd,SME,1048644,74.84,Travel & Subsistence General Duty,Administration
Land Registry,Land Registry,11/02/2015,Travel & Subsistence General Duty,Director of Legal Services,Redfern Travel Ltd,SME,1048644,190.53,Travel & Subsistence General Duty,Administration
Land Registry,Land Registry,11/02/2015,Travel & Subsistence General Duty,Registration Legal Services Group,Redfern Travel Ltd,SME,1048644,45.63,Travel & Subsistence General Duty,Administration
Land Registry,Land Registry,11/02/2015,Travel & Subsistence General Duty,Technical Assurance Group,Redfern Travel Ltd,SME,1048644,35.05,Travel & Subsistence General Duty,Administration
Land Registry,Land Registry,11/02/2015,Travel & Subsistence General Duty,Survey & Mapping Services,Redfern Travel Ltd,SME,1048644,487.95,Travel & Subsistence General Duty,Administration
Land Registry,Land Registry,11/02/2015,Travel & Subsistence General Duty,Corporate Legal Services,Redfern Travel Ltd,SME,1048644,393.58,Travel & Subsistence General Duty,Administration
Land Registry,Land Registry,11/02/2015,Travel & Subsistence General Duty,Guarantee & Litigation,Redfern Travel Ltd,SME,1048644,218.68,Travel & Subsistence General Duty,Administration
Land Registry,Land Registry,11/02/2015,Travel & Subsistence General Duty,Research & Data Mining,Redfern Travel Ltd,SME,1048644,462.22,Travel & Subsistence General Duty,Administration
Land Registry,Land Registry,11/02/2015,Travel & Subsistence General Duty,Local Lawyer Group,Redfern Travel Ltd,SME,1048644,"1,240.69",Travel & Subsistence General Duty,Administration
Land Registry,Land Registry,11/02/2015,Travel & Subsistence General Duty,Projects and Programme Centre,Redfern Travel Ltd,SME,1048644,385.08,Travel & Subsistence General Duty,Administration
Land Registry,Land Registry,11/02/2015,Travel & Subsistence General Duty,Director of Information Systems,Redfern Travel Ltd,SME,1048644,289.70,Travel & Subsistence General Duty,Administration
Land Registry,Land Registry,11/02/2015,Travel & Subsistence General Duty,Internal Solutions Group,Redfern Travel Ltd,SME,1048644,"3,100.61",Travel & Subsistence General Duty,Administration
Land Registry,Land Registry,11/02/2015,Travel & Subsistence General Duty,Governance & Policy,Redfern Travel Ltd,SME,1048644,237.78,Travel & Subsistence General Duty,Administration
Land Registry,Land Registry,11/02/2015,Travel & Subsistence General Duty,Technology Group,Redfern Travel Ltd,SME,1048644,777.69,Travel & Subsistence General Duty,Administration
Land Registry,Land Registry,11/02/2015,Travel & Subsistence General Duty,IS Service Delivery,Redfern Travel Ltd,SME,1048644,"1,881.20",Travel & Subsistence General Duty,Administration
Land Registry,Land Registry,11/02/2015,Travel & Subsistence General Duty,Central Facilities Management Team,Redfern Travel Ltd,SME,1048644,"1,161.49",Travel & Subsistence General Duty,Administration
Land Registry,Land Registry,11/02/2015,Travel & Subsistence General Duty,Property Asset Management Group,Redfern Travel Ltd,SME,1048644,376.21,Travel & Subsistence General Duty,Administration
Land Registry,Land Registry,11/02/2015,Travel & Subsistence General Duty,Business Continuity,Redfern Travel Ltd,SME,1048644,839.24,Travel & Subsistence General Duty,Administration
Land Registry,Land Registry,11/02/2015,Travel & Subsistence General Duty,Dir: (Statutory) Commercial & Customer,Redfern Travel Ltd,SME,1048644,"6,928.83",Travel & Subsistence General Duty,Administration
Land Registry,Land Registry,11/02/2015,Travel & Subsistence General Duty,LR Connect Portfolio,Redfern Travel Ltd,SME,1048644,"1,498.42",Travel & Subsistence General Duty,Administration
Land Registry,Land Registry,11/02/2015,Travel & Subsistence General Duty,Prog: IT Foundations,Redfern Travel Ltd,SME,1048644,40.60,Travel & Subsistence General Duty,Administration
Land Registry,Land Registry,11/02/2015,Travel & Subsistence General Duty,Prog: e-Enablement,Redfern Travel Ltd,SME,1048644,"2,171.09",Travel & Subsistence General Duty,Administration
Land Registry,Land Registry,11/02/2015,Travel & Subsistence General Duty,Prog: Digital by Default,Redfern Travel Ltd,SME,1048644,"9,142.69",Travel & Subsistence General Duty,Administration
Land Registry,Land Registry,11/02/2015,Travel & Subsistence General Duty,Commercial Director,Redfern Travel Ltd,SME,1048644,46.34,Travel & Subsistence General Duty,Administration
Land Registry,Land Registry,11/02/2015,Travel & Subsistence General Duty,Business Development,Redfern Travel Ltd,SME,1048644,660.07,Travel & Subsistence General Duty,Administration
Land Registry,Land Registry,11/02/2015,Travel & Subsistence General Duty,Commercial & Customer Strategy & Performance,Redfern Travel Ltd,SME,1048644,"1,168.42",Travel & Subsistence General Duty,Administration
Land Registry,Land Registry,11/02/2015,Travel & Subsistence General Duty,Product Development & Management,Redfern Travel Ltd,SME,1048644,"1,481.93",Travel & Subsistence General Duty,Administration
Land Registry,Land Registry,11/02/2015,Travel & Subsistence General Duty,Marketing Services Team,Redfern Travel Ltd,SME,1048644,729.52,Travel & Subsistence General Duty,Administration
Land Registry,Land Registry,11/02/2015,Travel & Subsistence General Duty,International Unit,Redfern Travel Ltd,SME,1048644,585.84,Travel & Subsistence General Duty,Administration
Land Registry,Land Registry,11/02/2015,Travel & Subsistence General Duty,Customer Services,Redfern Travel Ltd,SME,1048644,183.46,Travel & Subsistence General Duty,Administration
Land Registry,Land Registry,17/02/2015,Travel & Subsistence General Duty,Birkenhead Office,Redfern Travel Ltd,SME,1049456,132.04,Travel & Subsistence General Duty,Administration
Land Registry,Land Registry,17/02/2015,Travel & Subsistence General Duty,Durham Office,Redfern Travel Ltd,SME,1049456,154.05,Travel & Subsistence General Duty,Administration
Land Registry,Land Registry,17/02/2015,Travel & Subsistence General Duty,Gloucester Office,Redfern Travel Ltd,SME,1049456,-183.88,Travel & Subsistence General Duty,Administration
Land Registry,Land Registry,17/02/2015,Travel & Subsistence General Duty,Hull Office,Redfern Travel Ltd,SME,1049456,9.10,Travel & Subsistence General Duty,Administration
Land Registry,Land Registry,17/02/2015,Travel & Subsistence General Duty,Fylde Office,Redfern Travel Ltd,SME,1049456,23.50,Travel & Subsistence General Duty,Administration
Land Registry,Land Registry,17/02/2015,Travel & Subsistence General Duty,Leicester Office,Redfern Travel Ltd,SME,1049456,322.76,Travel & Subsistence General Duty,Administration
Land Registry,Land Registry,17/02/2015,Travel & Subsistence General Duty,Peterborough Office,Redfern Travel Ltd,SME,1049456,208.75,Travel & Subsistence General Duty,Administration
Land Registry,Land Registry,17/02/2015,Travel & Subsistence General Duty,Wales Office,Redfern Travel Ltd,SME,1049456,528.40,Travel & Subsistence General Duty,Administration
Land Registry,Land Registry,17/02/2015,Travel & Subsistence General Duty,Weymouth Office,Redfern Travel Ltd,SME,1049456,229.50,Travel & Subsistence General Duty,Administration
Land Registry,Land Registry,17/02/2015,Travel & Subsistence General Duty,Chief Executives Office,Redfern Travel Ltd,SME,1049456,"1,312.15",Travel & Subsistence General Duty,Administration
Land Registry,Land Registry,17/02/2015,Travel & Subsistence General Duty,LR Board & Board Chair,Redfern Travel Ltd,SME,1049456,1.40,Travel & Subsistence General Duty,Administration
Land Registry,Land Registry,17/02/2015,Travel & Subsistence General Duty,Strategy Team,Redfern Travel Ltd,SME,1049456,314.38,Travel & Subsistence General Duty,Administration
Land Registry,Land Registry,17/02/2015,Travel & Subsistence General Duty,HR,Redfern Travel Ltd,SME,1049456,"3,803.00",Travel & Subsistence General Duty,Administration
Land Registry,Land Registry,17/02/2015,Travel & Subsistence General Duty,Learning and Development,Redfern Travel Ltd,SME,1049456,71.31,Travel & Subsistence General Duty,Administration
Land Registry,Land Registry,17/02/2015,Travel & Subsistence General Duty,Employee & Management Support Manager,Redfern Travel Ltd,SME,1049456,214.60,Travel & Subsistence General Duty,Administration
Land Registry,Land Registry,17/02/2015,Travel & Subsistence General Duty,Finance Director,Redfern Travel Ltd,SME,1049456,941.34,Travel & Subsistence General Duty,Administration
Land Registry,Land Registry,17/02/2015,Travel & Subsistence General Duty,Finance Group,Redfern Travel Ltd,SME,1049456,121.41,Travel & Subsistence General Duty,Administration
Land Registry,Land Registry,17/02/2015,Travel & Subsistence General Duty,Corp Procurement,Redfern Travel Ltd,SME,1049456,380.35,Travel & Subsistence General Duty,Administration
Land Registry,Land Registry,17/02/2015,Travel & Subsistence General Duty,Internal Audit,Redfern Travel Ltd,SME,1049456,"1,275.38",Travel & Subsistence General Duty,Administration
Land Registry,Land Registry,17/02/2015,Travel & Subsistence General Duty,Director of Operations,Redfern Travel Ltd,SME,1049456,72.83,Travel & Subsistence General Duty,Administration
Land Registry,Land Registry,17/02/2015,Travel & Subsistence General Duty,Central Operations Group,Redfern Travel Ltd,SME,1049456,"3,486.87",Travel & Subsistence General Duty,Administration
Land Registry,Land Registry,17/02/2015,Travel & Subsistence General Duty,Forward Scanning,Redfern Travel Ltd,SME,1049456,75.34,Travel & Subsistence General Duty,Administration
Land Registry,Land Registry,17/02/2015,Travel & Subsistence General Duty,Director of Legal Services,Redfern Travel Ltd,SME,1049456,166.56,Travel & Subsistence General Duty,Administration
Land Registry,Land Registry,17/02/2015,Travel & Subsistence General Duty,Professional Library,Redfern Travel Ltd,SME,1049456,44.16,Travel & Subsistence General Duty,Administration
Land Registry,Land Registry,17/02/2015,Travel & Subsistence General Duty,Registration Legal Services Group,Redfern Travel Ltd,SME,1049456,58.31,Travel & Subsistence General Duty,Administration
Land Registry,Land Registry,17/02/2015,Travel & Subsistence General Duty,Technical Assurance Group,Redfern Travel Ltd,SME,1049456,76.85,Travel & Subsistence General Duty,Administration
Land Registry,Land Registry,17/02/2015,Travel & Subsistence General Duty,Survey & Mapping Services,Redfern Travel Ltd,SME,1049456,419.33,Travel & Subsistence General Duty,Administration
Land Registry,Land Registry,17/02/2015,Travel & Subsistence General Duty,Corporate Legal Services,Redfern Travel Ltd,SME,1049456,470.65,Travel & Subsistence General Duty,Administration
Land Registry,Land Registry,17/02/2015,Travel & Subsistence General Duty,Guarantee & Litigation,Redfern Travel Ltd,SME,1049456,128.86,Travel & Subsistence General Duty,Administration
Land Registry,Land Registry,17/02/2015,Travel & Subsistence General Duty,Research & Data Mining,Redfern Travel Ltd,SME,1049456,90.94,Travel & Subsistence General Duty,Administration
Land Registry,Land Registry,17/02/2015,Travel & Subsistence General Duty,Local Lawyer Group,Redfern Travel Ltd,SME,1049456,"2,975.26",Travel & Subsistence General Duty,Administration
Land Registry,Land Registry,17/02/2015,Travel & Subsistence General Duty,Projects and Programme Centre,Redfern Travel Ltd,SME,1049456,647.02,Travel & Subsistence General Duty,Administration
Land Registry,Land Registry,17/02/2015,Travel & Subsistence General Duty,Director of Information Systems,Redfern Travel Ltd,SME,1049456,755.88,Travel & Subsistence General Duty,Administration
Land Registry,Land Registry,17/02/2015,Travel & Subsistence General Duty,Internal Solutions Group,Redfern Travel Ltd,SME,1049456,"2,544.55",Travel & Subsistence General Duty,Administration
Land Registry,Land Registry,17/02/2015,Travel & Subsistence General Duty,Governance & Policy,Redfern Travel Ltd,SME,1049456,116.37,Travel & Subsistence General Duty,Administration
Land Registry,Land Registry,17/02/2015,Travel & Subsistence General Duty,Technology Group,Redfern Travel Ltd,SME,1049456,579.53,Travel & Subsistence General Duty,Administration
Land Registry,Land Registry,17/02/2015,Travel & Subsistence General Duty,IS Service Delivery,Redfern Travel Ltd,SME,1049456,"1,528.41",Travel & Subsistence General Duty,Administration
Land Registry,Land Registry,17/02/2015,Travel & Subsistence General Duty,Central Facilities Management Team,Redfern Travel Ltd,SME,1049456,953.02,Travel & Subsistence General Duty,Administration
Land Registry,Land Registry,17/02/2015,Travel & Subsistence General Duty,Property Asset Management Group,Redfern Travel Ltd,SME,1049456,"1,314.26",Travel & Subsistence General Duty,Administration
Land Registry,Land Registry,17/02/2015,Travel & Subsistence General Duty,Business Continuity,Redfern Travel Ltd,SME,1049456,574.12,Travel & Subsistence General Duty,Administration
Land Registry,Land Registry,17/02/2015,Travel & Subsistence General Duty,Dir: (Statutory) Commercial & Customer,Redfern Travel Ltd,SME,1049456,"6,028.06",Travel & Subsistence General Duty,Administration
Land Registry,Land Registry,17/02/2015,Travel & Subsistence General Duty,LR Connect Portfolio,Redfern Travel Ltd,SME,1049456,"1,795.29",Travel & Subsistence General Duty,Administration
Land Registry,Land Registry,17/02/2015,Travel & Subsistence General Duty,Prog: IT Foundations,Redfern Travel Ltd,SME,1049456,80.76,Travel & Subsistence General Duty,Administration
Land Registry,Land Registry,17/02/2015,Travel & Subsistence General Duty,Prog: People&Organisation,Redfern Travel Ltd,SME,1049456,79.36,Travel & Subsistence General Duty,Administration
Land Registry,Land Registry,17/02/2015,Travel & Subsistence General Duty,Prog: e-Enablement,Redfern Travel Ltd,SME,1049456,"2,030.58",Travel & Subsistence General Duty,Administration
Land Registry,Land Registry,17/02/2015,Travel & Subsistence General Duty,Prog: Digital by Default,Redfern Travel Ltd,SME,1049456,"8,559.86",Travel & Subsistence General Duty,Administration
Land Registry,Land Registry,17/02/2015,Travel & Subsistence General Duty,Commercial Director,Redfern Travel Ltd,SME,1049456,184.80,Travel & Subsistence General Duty,Administration
Land Registry,Land Registry,17/02/2015,Travel & Subsistence General Duty,Business Development,Redfern Travel Ltd,SME,1049456,655.89,Travel & Subsistence General Duty,Administration
Land Registry,Land Registry,17/02/2015,Travel & Subsistence General Duty,Commercial & Customer Strategy & Performance,Redfern Travel Ltd,SME,1049456,"1,281.42",Travel & Subsistence General Duty,Administration
Land Registry,Land Registry,17/02/2015,Travel & Subsistence General Duty,Product Development & Management,Redfern Travel Ltd,SME,1049456,436.70,Travel & Subsistence General Duty,Administration
Land Registry,Land Registry,17/02/2015,Travel & Subsistence General Duty,Marketing Services Team,Redfern Travel Ltd,SME,1049456,315.32,Travel & Subsistence General Duty,Administration
Land Registry,Land Registry,17/02/2015,Travel & Subsistence General Duty,International Unit,Redfern Travel Ltd,SME,1049456,762.53,Travel & Subsistence General Duty,Administration
Land Registry,Land Registry,17/02/2015,Travel & Subsistence General Duty,Customer Services,Redfern Travel Ltd,SME,1049456,98.48,Travel & Subsistence General Duty,Administration
Land Registry,Land Registry,27/02/2015,Travel & Subsistence General Duty,Coventry Office,Redfern Travel Ltd,SME,1050817,7.83,Travel & Subsistence General Duty,Administration
Land Registry,Land Registry,27/02/2015,Travel & Subsistence General Duty,Durham Office,Redfern Travel Ltd,SME,1050817,-21.80,Travel & Subsistence General Duty,Administration
Land Registry,Land Registry,27/02/2015,Travel & Subsistence General Duty,Leicester Office,Redfern Travel Ltd,SME,1050817,79.70,Travel & Subsistence General Duty,Administration
Land Registry,Land Registry,27/02/2015,Travel & Subsistence General Duty,Nottingham Office,Redfern Travel Ltd,SME,1050817,430.52,Travel & Subsistence General Duty,Administration
Land Registry,Land Registry,27/02/2015,Travel & Subsistence General Duty,Peterborough Office,Redfern Travel Ltd,SME,1050817,108.39,Travel & Subsistence General Duty,Administration
Land Registry,Land Registry,27/02/2015,Travel & Subsistence General Duty,Telford Office,Redfern Travel Ltd,SME,1050817,3.68,Travel & Subsistence General Duty,Administration
Land Registry,Land Registry,27/02/2015,Travel & Subsistence General Duty,Wales Office,Redfern Travel Ltd,SME,1050817,156.94,Travel & Subsistence General Duty,Administration
Land Registry,Land Registry,27/02/2015,Travel & Subsistence General Duty,Chief Executives Office,Redfern Travel Ltd,SME,1050817,"1,171.08",Travel & Subsistence General Duty,Administration
Land Registry,Land Registry,27/02/2015,Travel & Subsistence General Duty,Strategy Team,Redfern Travel Ltd,SME,1050817,-9.99,Travel & Subsistence General Duty,Administration
Land Registry,Land Registry,27/02/2015,Travel & Subsistence General Duty,HR,Redfern Travel Ltd,SME,1050817,"5,365.90",Travel & Subsistence General Duty,Administration
Land Registry,Land Registry,27/02/2015,Travel & Subsistence General Duty,Learning and Development,Redfern Travel Ltd,SME,1050817,80.02,Travel & Subsistence General Duty,Administration
Land Registry,Land Registry,27/02/2015,Travel & Subsistence General Duty,Employee & Management Support Manager,Redfern Travel Ltd,SME,1050817,-80.24,Travel & Subsistence General Duty,Administration
Land Registry,Land Registry,27/02/2015,Travel & Subsistence General Duty,Finance Group,Redfern Travel Ltd,SME,1050817,948.72,Travel & Subsistence General Duty,Administration
Land Registry,Land Registry,27/02/2015,Travel & Subsistence General Duty,Corp Procurement,Redfern Travel Ltd,SME,1050817,346.97,Travel & Subsistence General Duty,Administration
Land Registry,Land Registry,27/02/2015,Travel & Subsistence General Duty,Internal Audit,Redfern Travel Ltd,SME,1050817,815.83,Travel & Subsistence General Duty,Administration
Land Registry,Land Registry,27/02/2015,Travel & Subsistence General Duty,Director of Operations,Redfern Travel Ltd,SME,1050817,144.73,Travel & Subsistence General Duty,Administration
Land Registry,Land Registry,27/02/2015,Travel & Subsistence General Duty,Central Operations Group,Redfern Travel Ltd,SME,1050817,"2,707.40",Travel & Subsistence General Duty,Administration
Land Registry,Land Registry,27/02/2015,Travel & Subsistence General Duty,Central RFS,Redfern Travel Ltd,SME,1050817,207.62,Travel & Subsistence General Duty,Administration
Land Registry,Land Registry,27/02/2015,Travel & Subsistence General Duty,Director of Legal Services,Redfern Travel Ltd,SME,1050817,453.58,Travel & Subsistence General Duty,Administration
Land Registry,Land Registry,27/02/2015,Travel & Subsistence General Duty,Registration Legal Services Group,Redfern Travel Ltd,SME,1050817,553.50,Travel & Subsistence General Duty,Administration
Land Registry,Land Registry,27/02/2015,Travel & Subsistence General Duty,Technical Assurance Group,Redfern Travel Ltd,SME,1050817,134.19,Travel & Subsistence General Duty,Administration
Land Registry,Land Registry,27/02/2015,Travel & Subsistence General Duty,Survey & Mapping Services,Redfern Travel Ltd,SME,1050817,740.76,Travel & Subsistence General Duty,Administration
Land Registry,Land Registry,27/02/2015,Travel & Subsistence General Duty,Corporate Legal Services,Redfern Travel Ltd,SME,1050817,"1,414.31",Travel & Subsistence General Duty,Administration
Land Registry,Land Registry,27/02/2015,Travel & Subsistence General Duty,Guarantee & Litigation,Redfern Travel Ltd,SME,1050817,1.40,Travel & Subsistence General Duty,Administration
Land Registry,Land Registry,27/02/2015,Travel & Subsistence General Duty,Research & Data Mining,Redfern Travel Ltd,SME,1050817,606.40,Travel & Subsistence General Duty,Administration
Land Registry,Land Registry,27/02/2015,Travel & Subsistence General Duty,Local Lawyer Group,Redfern Travel Ltd,SME,1050817,"1,252.38",Travel & Subsistence General Duty,Administration
Land Registry,Land Registry,27/02/2015,Travel & Subsistence General Duty,Projects and Programme Centre,Redfern Travel Ltd,SME,1050817,144.25,Travel & Subsistence General Duty,Administration
Land Registry,Land Registry,27/02/2015,Travel & Subsistence General Duty,Director of Information Systems,Redfern Travel Ltd,SME,1050817,451.45,Travel & Subsistence General Duty,Administration
Land Registry,Land Registry,27/02/2015,Travel & Subsistence General Duty,Internal Solutions Group,Redfern Travel Ltd,SME,1050817,"1,594.88",Travel & Subsistence General Duty,Administration
Land Registry,Land Registry,27/02/2015,Travel & Subsistence General Duty,Governance & Policy,Redfern Travel Ltd,SME,1050817,570.78,Travel & Subsistence General Duty,Administration
Land Registry,Land Registry,27/02/2015,Travel & Subsistence General Duty,Technology Group,Redfern Travel Ltd,SME,1050817,484.27,Travel & Subsistence General Duty,Administration
Land Registry,Land Registry,27/02/2015,Travel & Subsistence General Duty,IS Service Delivery,Redfern Travel Ltd,SME,1050817,"3,212.26",Travel & Subsistence General Duty,Administration
Land Registry,Land Registry,27/02/2015,Travel & Subsistence General Duty,Central Facilities Management Team,Redfern Travel Ltd,SME,1050817,"1,305.28",Travel & Subsistence General Duty,Administration
Land Registry,Land Registry,27/02/2015,Travel & Subsistence General Duty,Property Asset Management Group,Redfern Travel Ltd,SME,1050817,"1,280.77",Travel & Subsistence General Duty,Administration
Land Registry,Land Registry,27/02/2015,Travel & Subsistence General Duty,Business Continuity,Redfern Travel Ltd,SME,1050817,202.41,Travel & Subsistence General Duty,Administration
Land Registry,Land Registry,27/02/2015,Travel & Subsistence General Duty,Dir: (Statutory) Commercial & Customer,Redfern Travel Ltd,SME,1050817,"1,642.83",Travel & Subsistence General Duty,Administration
Land Registry,Land Registry,27/02/2015,Travel & Subsistence General Duty,LR Connect Portfolio,Redfern Travel Ltd,SME,1050817,"2,028.71",Travel & Subsistence General Duty,Administration
Land Registry,Land Registry,27/02/2015,Travel & Subsistence General Duty,Prog: IT Foundations,Redfern Travel Ltd,SME,1050817,594.20,Travel & Subsistence General Duty,Administration
Land Registry,Land Registry,27/02/2015,Travel & Subsistence General Duty,Prog: People&Organisation,Redfern Travel Ltd,SME,1050817,169.38,Travel & Subsistence General Duty,Administration
Land Registry,Land Registry,27/02/2015,Travel & Subsistence General Duty,Prog: e-Enablement,Redfern Travel Ltd,SME,1050817,"3,168.80",Travel & Subsistence General Duty,Administration
Land Registry,Land Registry,27/02/2015,Travel & Subsistence General Duty,Prog: Digital by Default,Redfern Travel Ltd,SME,1050817,"9,978.05",Travel & Subsistence General Duty,Administration
Land Registry,Land Registry,27/02/2015,Travel & Subsistence General Duty,Commercial Director,Redfern Travel Ltd,SME,1050817,156.10,Travel & Subsistence General Duty,Administration
Land Registry,Land Registry,27/02/2015,Travel & Subsistence General Duty,Business Development,Redfern Travel Ltd,SME,1050817,498.63,Travel & Subsistence General Duty,Administration
Land Registry,Land Registry,27/02/2015,Travel & Subsistence General Duty,Commercial & Customer Strategy & Performance,Redfern Travel Ltd,SME,1050817,428.87,Travel & Subsistence General Duty,Administration
Land Registry,Land Registry,27/02/2015,Travel & Subsistence General Duty,Product Development & Management,Redfern Travel Ltd,SME,1050817,"1,437.63",Travel & Subsistence General Duty,Administration
Land Registry,Land Registry,27/02/2015,Travel & Subsistence General Duty,Marketing Services Team,Redfern Travel Ltd,SME,1050817,280.91,Travel & Subsistence General Duty,Administration
Land Registry,Land Registry,27/02/2015,Travel & Subsistence General Duty,International Unit,Redfern Travel Ltd,SME,1050817,60.27,Travel & Subsistence General Duty,Administration
Land Registry,Land Registry,27/02/2015,Travel & Subsistence General Duty,Customer Services,Redfern Travel Ltd,SME,1050817,266.43,Travel & Subsistence General Duty,Administration
Land Registry,Land Registry,27/02/2015,Travel & Subsistence General Duty,Birkenhead Office,Redfern Travel Ltd,SME,1050817,78.86,Travel & Subsistence General Duty,Administration
Land Registry,Land Registry,27/02/2015,Travel & Subsistence General Duty,Croydon Office,Redfern Travel Ltd,SME,1050817,149.12,Travel & Subsistence General Duty,Administration
Land Registry,Land Registry,27/02/2015,Travel & Subsistence General Duty,Durham Office,Redfern Travel Ltd,SME,1050817,241.23,Travel & Subsistence General Duty,Administration
Land Registry,Land Registry,27/02/2015,Travel & Subsistence General Duty,Gloucester Office,Redfern Travel Ltd,SME,1050817,-99.11,Travel & Subsistence General Duty,Administration
Land Registry,Land Registry,27/02/2015,Travel & Subsistence General Duty,Leicester Office,Redfern Travel Ltd,SME,1050817,160.93,Travel & Subsistence General Duty,Administration
Land Registry,Land Registry,27/02/2015,Travel & Subsistence General Duty,Nottingham Office,Redfern Travel Ltd,SME,1050817,192.55,Travel & Subsistence General Duty,Administration
Land Registry,Land Registry,27/02/2015,Travel & Subsistence General Duty,Peterborough Office,Redfern Travel Ltd,SME,1050817,422.94,Travel & Subsistence General Duty,Administration
Land Registry,Land Registry,27/02/2015,Travel & Subsistence General Duty,Plymouth Office,Redfern Travel Ltd,SME,1050817,94.23,Travel & Subsistence General Duty,Administration
Land Registry,Land Registry,27/02/2015,Travel & Subsistence General Duty,Telford Office,Redfern Travel Ltd,SME,1050817,-27.43,Travel & Subsistence General Duty,Administration
Land Registry,Land Registry,27/02/2015,Travel & Subsistence General Duty,Wales Office,Redfern Travel Ltd,SME,1050817,149.97,Travel & Subsistence General Duty,Administration
Land Registry,Land Registry,27/02/2015,Travel & Subsistence General Duty,Land Charges,Redfern Travel Ltd,SME,1050817,-2.48,Travel & Subsistence General Duty,Administration
Land Registry,Land Registry,27/02/2015,Travel & Subsistence General Duty,Chief Executives Office,Redfern Travel Ltd,SME,1050817,"1,241.05",Travel & Subsistence General Duty,Administration
Land Registry,Land Registry,27/02/2015,Travel & Subsistence General Duty,Strategy Team,Redfern Travel Ltd,SME,1050817,4.20,Travel & Subsistence General Duty,Administration
Land Registry,Land Registry,27/02/2015,Travel & Subsistence General Duty,HR,Redfern Travel Ltd,SME,1050817,"4,493.12",Travel & Subsistence General Duty,Administration
Land Registry,Land Registry,27/02/2015,Travel & Subsistence General Duty,Learning and Development,Redfern Travel Ltd,SME,1050817,543.69,Travel & Subsistence General Duty,Administration
Land Registry,Land Registry,27/02/2015,Travel & Subsistence General Duty,Finance Group,Redfern Travel Ltd,SME,1050817,357.68,Travel & Subsistence General Duty,Administration
Land Registry,Land Registry,27/02/2015,Travel & Subsistence General Duty,Corp Procurement,Redfern Travel Ltd,SME,1050817,331.17,Travel & Subsistence General Duty,Administration
Land Registry,Land Registry,27/02/2015,Travel & Subsistence General Duty,Internal Audit,Redfern Travel Ltd,SME,1050817,"1,689.24",Travel & Subsistence General Duty,Administration
Land Registry,Land Registry,27/02/2015,Travel & Subsistence General Duty,Business Planning Assurance and Risk Management,Redfern Travel Ltd,SME,1050817,209.00,Travel & Subsistence General Duty,Administration
Land Registry,Land Registry,27/02/2015,Travel & Subsistence General Duty,Central Operations Group,Redfern Travel Ltd,SME,1050817,"1,498.41",Travel & Subsistence General Duty,Administration
Land Registry,Land Registry,27/02/2015,Travel & Subsistence General Duty,Director of Legal Services,Redfern Travel Ltd,SME,1050817,"1,270.22",Travel & Subsistence General Duty,Administration
Land Registry,Land Registry,27/02/2015,Travel & Subsistence General Duty,Registration Legal Services Group,Redfern Travel Ltd,SME,1050817,261.53,Travel & Subsistence General Duty,Administration
Land Registry,Land Registry,27/02/2015,Travel & Subsistence General Duty,Survey & Mapping Services,Redfern Travel Ltd,SME,1050817,243.74,Travel & Subsistence General Duty,Administration
Land Registry,Land Registry,27/02/2015,Travel & Subsistence General Duty,National Lawyer Training,Redfern Travel Ltd,SME,1050817,135.67,Travel & Subsistence General Duty,Administration
Land Registry,Land Registry,27/02/2015,Travel & Subsistence General Duty,Corporate Legal Services,Redfern Travel Ltd,SME,1050817,519.50,Travel & Subsistence General Duty,Administration
Land Registry,Land Registry,27/02/2015,Travel & Subsistence General Duty,Guarantee & Litigation,Redfern Travel Ltd,SME,1050817,81.88,Travel & Subsistence General Duty,Administration
Land Registry,Land Registry,27/02/2015,Travel & Subsistence General Duty,Research & Data Mining,Redfern Travel Ltd,SME,1050817,129.14,Travel & Subsistence General Duty,Administration
Land Registry,Land Registry,27/02/2015,Travel & Subsistence General Duty,Local Lawyer Group,Redfern Travel Ltd,SME,1050817,"1,790.97",Travel & Subsistence General Duty,Administration
Land Registry,Land Registry,27/02/2015,Travel & Subsistence General Duty,Director of Information Systems,Redfern Travel Ltd,SME,1050817,264.14,Travel & Subsistence General Duty,Administration
Land Registry,Land Registry,27/02/2015,Travel & Subsistence General Duty,Internal Solutions Group,Redfern Travel Ltd,SME,1050817,"1,733.98",Travel & Subsistence General Duty,Administration
Land Registry,Land Registry,27/02/2015,Travel & Subsistence General Duty,Technology Group,Redfern Travel Ltd,SME,1050817,618.46,Travel & Subsistence General Duty,Administration
Land Registry,Land Registry,27/02/2015,Travel & Subsistence General Duty,IS Service Delivery,Redfern Travel Ltd,SME,1050817,"1,911.72",Travel & Subsistence General Duty,Administration
Land Registry,Land Registry,27/02/2015,Travel & Subsistence General Duty,Central Facilities Management Team,Redfern Travel Ltd,SME,1050817,604.16,Travel & Subsistence General Duty,Administration
Land Registry,Land Registry,27/02/2015,Travel & Subsistence General Duty,Property Asset Management Group,Redfern Travel Ltd,SME,1050817,371.08,Travel & Subsistence General Duty,Administration
Land Registry,Land Registry,27/02/2015,Travel & Subsistence General Duty,Business Continuity,Redfern Travel Ltd,SME,1050817,369.16,Travel & Subsistence General Duty,Administration
Land Registry,Land Registry,27/02/2015,Travel & Subsistence General Duty,Dir: (Statutory) Commercial & Customer,Redfern Travel Ltd,SME,1050817,"5,214.47",Travel & Subsistence General Duty,Administration
Land Registry,Land Registry,27/02/2015,Travel & Subsistence General Duty,LR Connect Portfolio,Redfern Travel Ltd,SME,1050817,"1,269.18",Travel & Subsistence General Duty,Administration
Land Registry,Land Registry,27/02/2015,Travel & Subsistence General Duty,Prog: IT Foundations,Redfern Travel Ltd,SME,1050817,206.96,Travel & Subsistence General Duty,Administration
Land Registry,Land Registry,27/02/2015,Travel & Subsistence General Duty,Prog: People&Organisation,Redfern Travel Ltd,SME,1050817,329.75,Travel & Subsistence General Duty,Administration
Land Registry,Land Registry,27/02/2015,Travel & Subsistence General Duty,Prog: e-Enablement,Redfern Travel Ltd,SME,1050817,879.19,Travel & Subsistence General Duty,Administration
Land Registry,Land Registry,27/02/2015,Travel & Subsistence General Duty,Prog: Digital by Default,Redfern Travel Ltd,SME,1050817,"8,612.87",Travel & Subsistence General Duty,Administration
Land Registry,Land Registry,27/02/2015,Travel & Subsistence General Duty,Commercial Director,Redfern Travel Ltd,SME,1050817,86.91,Travel & Subsistence General Duty,Administration
Land Registry,Land Registry,27/02/2015,Travel & Subsistence General Duty,Business Development,Redfern Travel Ltd,SME,1050817,533.12,Travel & Subsistence General Duty,Administration
Land Registry,Land Registry,27/02/2015,Travel & Subsistence General Duty,Commercial & Customer Strategy & Performance,Redfern Travel Ltd,SME,1050817,414.69,Travel & Subsistence General Duty,Administration
Land Registry,Land Registry,27/02/2015,Travel & Subsistence General Duty,Product Development & Management,Redfern Travel Ltd,SME,1050817,"1,127.71",Travel & Subsistence General Duty,Administration
Land Registry,Land Registry,27/02/2015,Travel & Subsistence General Duty,Marketing Services Team,Redfern Travel Ltd,SME,1050817,13.42,Travel & Subsistence General Duty,Administration
Land Registry,Land Registry,27/02/2015,Travel & Subsistence General Duty,International Unit,Redfern Travel Ltd,SME,1050817,588.05,Travel & Subsistence General Duty,Administration
Land Registry,Land Registry,27/02/2015,Travel & Subsistence General Duty,Customer Services,Redfern Travel Ltd,SME,1050817,-56.49,Travel & Subsistence General Duty,Administration
Land Registry,Land Registry,06/02/2015,Fixed Asset Interface Account,Balance Sheet,Rolfe Contracting Ltd,SME,1048072,"125,387.87",Fixed Asset Interface Account,Administration
Land Registry,Land Registry,06/02/2015,Fixed Asset Interface Account,Balance Sheet,Rolfe Contracting Ltd,SME,1048072,"25,077.57",Fixed Asset Interface Account,Administration
Land Registry,Land Registry,16/02/2015,Letter Post,Birkenhead Office,Royal Mail,Large,1049286,"2,336.12",Letter Post,Administration
Land Registry,Land Registry,16/02/2015,Letter Post,Coventry Office,Royal Mail,Large,1049286,"6,992.53",Letter Post,Administration
Land Registry,Land Registry,16/02/2015,Letter Post,Croydon Office,Royal Mail,Large,1049286,"3,843.23",Letter Post,Administration
Land Registry,Land Registry,16/02/2015,Letter Post,Durham Office,Royal Mail,Large,1049286,"5,794.21",Letter Post,Administration
Land Registry,Land Registry,16/02/2015,Letter Post,Gloucester Office,Royal Mail,Large,1049286,"1,902.05",Letter Post,Administration
Land Registry,Land Registry,16/02/2015,Letter Post,Hull Office,Royal Mail,Large,1049286,"2,574.69",Letter Post,Administration
Land Registry,Land Registry,16/02/2015,Letter Post,Fylde Office,Royal Mail,Large,1049286,"2,713.04",Letter Post,Administration
Land Registry,Land Registry,16/02/2015,Letter Post,Leicester Office,Royal Mail,Large,1049286,"1,873.80",Letter Post,Administration
Land Registry,Land Registry,16/02/2015,Letter Post,Nottingham Office,Royal Mail,Large,1049286,"2,688.50",Letter Post,Administration
Land Registry,Land Registry,16/02/2015,Letter Post,Peterborough Office,Royal Mail,Large,1049286,"2,008.36",Letter Post,Administration
Land Registry,Land Registry,16/02/2015,Letter Post,Plymouth Office,Royal Mail,Large,1049286,"2,907.07",Letter Post,Administration
Land Registry,Land Registry,16/02/2015,Letter Post,Telford Office,Royal Mail,Large,1049286,"2,277.56",Letter Post,Administration
Land Registry,Land Registry,16/02/2015,Letter Post,Wales Office,Royal Mail,Large,1049286,"10,557.97",Letter Post,Administration
Land Registry,Land Registry,16/02/2015,Letter Post,Weymouth Office,Royal Mail,Large,1049286,"1,818.55",Letter Post,Administration
Land Registry,Land Registry,16/02/2015,Letter Post,Land Charges,Royal Mail,Large,1049286,969.03,Letter Post,Administration
Land Registry,Land Registry,16/02/2015,Letter Post,IS Service Delivery,Royal Mail,Large,1049286,"12,430.56",Letter Post,Administration
Land Registry,Land Registry,16/02/2015,Parcel and Datapost,Peterborough Office,Royal Mail,Large,1049286,2.92,Parcel and Datapost,Administration
Land Registry,Land Registry,16/02/2015,Major Property Maintenance Projects,Central Facilities Management Team,Sitec Building and Maintenance Ltd,SME,1049288,"32,140.98",Major Property Maintenance Projects,Administration
Land Registry,Land Registry,02/02/2015,Software as a Service (Cloud),IS Service Delivery,Specialist Computer Centres Plc - SCC,Large,1047353,"111,714.54",Software as a Service (Cloud),Administration
Land Registry,Land Registry,24/02/2015,Rates Payable,Gloucester Computer Centre,Tewkesbury Borough Council,Large,1050370,"9,281.00",Rates Payable,Administration
Land Registry,Land Registry,18/02/2015,RFS Outsourced Services,Central RFS,TNT (UK) Ltd,Large,1049595,"188,116.21",RFS Outsourced Services,Administration
Land Registry,Land Registry,19/02/2015,RFS Outsourced Services,Central RFS,TNT (UK) Ltd,Large,1049867,"100,302.54",RFS Outsourced Services,Administration
Land Registry,Land Registry,16/02/2015,Professional Services,Prog: e-Enablement,WTG Technologies Ltd,Large,1049290,"50,138.67",Professional Services,Administration
Land Registry,Land Registry,19/02/2015,Computer Equipment Consumables,Birkenhead Office,XMA Limited,Large,1049870,"3,902.86",Computer Equipment Consumables,Administration
Land Registry,Land Registry,19/02/2015,Computer Equipment Consumables,Birkenhead Office,XMA Limited,Large,1049870,780.58,Computer Equipment Consumables,Administration
Land Registry,Land Registry,19/02/2015,Computer Equipment Consumables,Coventry Office,XMA Limited,Large,1049870,"2,403.59",Computer Equipment Consumables,Administration
Land Registry,Land Registry,19/02/2015,Computer Equipment Consumables,Coventry Office,XMA Limited,Large,1049870,480.73,Computer Equipment Consumables,Administration
Land Registry,Land Registry,19/02/2015,Computer Equipment Consumables,Croydon Office,XMA Limited,Large,1049870,"3,100.95",Computer Equipment Consumables,Administration
Land Registry,Land Registry,19/02/2015,Computer Equipment Consumables,Croydon Office,XMA Limited,Large,1049870,620.22,Computer Equipment Consumables,Administration
Land Registry,Land Registry,19/02/2015,Computer Equipment Consumables,Durham Office,XMA Limited,Large,1049870,"5,378.57",Computer Equipment Consumables,Administration
Land Registry,Land Registry,19/02/2015,Computer Equipment Consumables,Durham Office,XMA Limited,Large,1049870,"1,075.71",Computer Equipment Consumables,Administration
Land Registry,Land Registry,19/02/2015,Computer Equipment Consumables,Gloucester Office,XMA Limited,Large,1049870,"5,340.24",Computer Equipment Consumables,Administration
Land Registry,Land Registry,19/02/2015,Computer Equipment Consumables,Gloucester Office,XMA Limited,Large,1049870,"1,068.05",Computer Equipment Consumables,Administration
Land Registry,Land Registry,19/02/2015,Computer Equipment Consumables,Hull Office,XMA Limited,Large,1049870,"3,306.77",Computer Equipment Consumables,Administration
Land Registry,Land Registry,19/02/2015,Computer Equipment Consumables,Hull Office,XMA Limited,Large,1049870,661.34,Computer Equipment Consumables,Administration
Land Registry,Land Registry,19/02/2015,Computer Equipment Consumables,Fylde Office,XMA Limited,Large,1049870,"3,092.85",Computer Equipment Consumables,Administration
Land Registry,Land Registry,19/02/2015,Computer Equipment Consumables,Fylde Office,XMA Limited,Large,1049870,618.57,Computer Equipment Consumables,Administration
Land Registry,Land Registry,19/02/2015,Computer Equipment Consumables,Leicester Office,XMA Limited,Large,1049870,"2,975.59",Computer Equipment Consumables,Administration
Land Registry,Land Registry,19/02/2015,Computer Equipment Consumables,Leicester Office,XMA Limited,Large,1049870,595.10,Computer Equipment Consumables,Administration
Land Registry,Land Registry,19/02/2015,Computer Equipment Consumables,Nottingham Office,XMA Limited,Large,1049870,"2,144.24",Computer Equipment Consumables,Administration
Land Registry,Land Registry,19/02/2015,Computer Equipment Consumables,Nottingham Office,XMA Limited,Large,1049870,428.86,Computer Equipment Consumables,Administration
Land Registry,Land Registry,19/02/2015,Computer Equipment Consumables,Plymouth Office,XMA Limited,Large,1049870,"3,624.19",Computer Equipment Consumables,Administration
Land Registry,Land Registry,19/02/2015,Computer Equipment Consumables,Plymouth Office,XMA Limited,Large,1049870,724.86,Computer Equipment Consumables,Administration
Land Registry,Land Registry,19/02/2015,Computer Equipment Consumables,Telford Office,XMA Limited,Large,1049870,819.11,Computer Equipment Consumables,Administration
Land Registry,Land Registry,19/02/2015,Computer Equipment Consumables,Telford Office,XMA Limited,Large,1049870,163.82,Computer Equipment Consumables,Administration
Land Registry,Land Registry,19/02/2015,Computer Equipment Consumables,Wales Office,XMA Limited,Large,1049870,"5,083.36",Computer Equipment Consumables,Administration
Land Registry,Land Registry,19/02/2015,Computer Equipment Consumables,Wales Office,XMA Limited,Large,1049870,"1,016.68",Computer Equipment Consumables,Administration
Land Registry,Land Registry,19/02/2015,Computer Equipment Consumables,Weymouth Office,XMA Limited,Large,1049870,"1,573.97",Computer Equipment Consumables,Administration
Land Registry,Land Registry,19/02/2015,Computer Equipment Consumables,Weymouth Office,XMA Limited,Large,1049870,314.78,Computer Equipment Consumables,Administration
Land Registry,Land Registry,19/02/2015,Computer Equipment Consumables,Internal Solutions Group,XMA Limited,Large,1049870,"1,785.30",Computer Equipment Consumables,Administration
Land Registry,Land Registry,19/02/2015,Computer Equipment Consumables,Internal Solutions Group,XMA Limited,Large,1049870,357.06,Computer Equipment Consumables,Administration
